Workbook

Sheet Dateneingabe und Ergebnisse
D1: Variante A: | G1: Variante F:
D2: AEROBE STABILISIERUNG | G2: FAULUNG
D3: Nr. | E3: Plausibilitäts- bereich | F3: Eingabe | G3: Nr. | H3: Plausibilitäts- bereich | I3: Eingabe
B4: D A T E N E I N G A B E B E R E I C H I
A5: I: Mittlere Belastung der Kläranlage | B5: Mittlere CSB-Belastung (siehe Handbuch) | C5: EWCSB120 | D5: 1A | E5: 2.000 - 40.000 | F5: 15000 | G5: 1F | I5: =F5 -> 15000
A6: II: Bemessungsbelastungen | B6: CSB-Bemessungsbelastung Belebung | C6: EWCSB120 | D6: 2A | F6: 20000 | G6: 2F | I6: =F6 -> 20000
B7: CSB-Bemessungsbelastung Faulung | C7: EWCSB120 | G7: 3F | H7: s. Handbuch | I7: 17000
A8: III: Wirkungsgrade | B8: Mittlere Entfernung CSB | C8: % | D8: 4A | E8: 85 - 98 | F8: 95 | G8: 4F | I8: =F8 -> 95
B9: Mittlere Entfernung NGes | C9: % | D9: 5A | E9: 70 - 95 | F9: 85 | G9: 5F | I9: =F9 -> 85
A10: IV: Vorklärung | B10: Vorklärung | C10: – | D10: 6A | E10: JA / NEIN | F10: NEIN | G10: 6F | H10: JA / NEIN | I10: NEIN
B11: Wirkungsgrad Vorklärung (CSB) | C11: % | D11: 7A | E11: 15 - 40 | F11: 0 | G11: 7F | H11: 15 - 40 | I11: 0
A12: V: Belebungsbecken | B12: Schlammalter Belebung | C12: d | D12: 8A | E12: 25 - 35 | F12: 30 | G12: 8F | H12: s. Handbuch | I12: 15
B13: TSBB | C13: g/L | D13: 9A | E13: 3,0 - 6,0 | F13: 3 | G13: 9F | H13: 3,0 - 6,0 | I13: 3
B14: Volumen Belebungsbecken IST (VBB-IST) | C14: m³ | D14: 10A | E14: s. Handbuch | F14: 7500 | G14: 10F | H14: s. Handbuch | I14: 7500
A15: VI: Belüftung | B15: Sauerstoffertrag | C15: kg O2/kWh | D15: 11A | E15: 1,50 - 2,20 | F15: 2 | G15: 11F | I15: =F15 -> 2
B16: Strompreis | C16: Euro/kWh | D16: 12A | E16: s. Handbuch | F16: 0.14 | G16: 12F | I16: =F16 -> 0.14
A17: VII: Schlammlinie | B17: oTS-Gehalt Primärschlamm | C17: % | D17: 13A | E17: 50 - 80 | F17: – | G17: 13F | H17: 50 - 80 | I17: –
B18: oTS-Gehalt Überschussschlamm | C18: % | D18: 14A | E18: 45 - 70 | F18: 55 | G18: 14F | H18: s. Handbuch | I18: 60
B19: TS Rohschlamm (Zulauf Faulung; nach Voreindickung) | C19: % | G19: 15F | H19: 3,0 - 6,0 | I19: 3
B20: Faulzeit | C20: d | G20: 16F | H20: 25 - 30 | I20: 30
B21: TS nach Entwässerung | C21: % | D21: 17F | E21: 20 - 30 | F21: 24 | G21: 17F | H21: 20 - 30 | I21: 26
B22: spezifische Schlamm-Entsorgungskosten | C22: Euro/t | D22: 18F | E22: s. Handbuch | F22: 60 | G22: 18F | H22: s. Handbuch | I22: 60
A23: VIII: Faulgasnutzung | B23: Faulgasnutzung | C23: – | G23: 19F | H23: JA / NEIN | I23: NEIN
B24: mittlerer elektrischer Wirkungsgrad | C24: % | G24: 20F | H24: 26 - 40 | I24: 0
B25: Strompreis (oder Einspeistarif) | C25: Euro/kWh | G25: 21F | H25: s. Handbuch | I25: 0
A27: Zwischenergebnis 1: Abschätzung Belebung / Faulung
A29: Belebung | B29: VBB–SOLL bei vorgegebener TSBB (9A/9F) | C29: m³ | F29: =Bemessung!AL27*F12/F13 -> 9322.199716 | I29: =Bemessung!AL60*I12/I13 -> 5039.374527
B30: zusätzlich erforderliches VBB bei vorgegebener TSBB (9A/9F) | C30: m³ | F30: =IF(F29-F14<=0,0,F29-F14) -> 1822.199716 | I30: =IF(I29-I14<=0,"–",I29-I14) -> –
B31: TSBB bei VBB–IST (Kontrollwert) | C31: g/L | F31: =Bemessung!AL27*F12/F14 -> 3.728879887 | I31: =Bemessung!AL60*I12/I14 -> 2.015749811
A32: Faulung / Schlammanfall | B32: Volumen Faulbehälter | C32: m³ | F32: – | I32: =Bemessung!BH58 -> 957.4811601
B33: Schlammanfall (entwässerter Schlamm) | C33: t/Jahr | F33: =Bemessung!AY26 -> 1188.4091 | I33: =Bemessung!AY56 -> 895.5619323
A35: Zwischenergebnis 1B: Reservekapazität Variante F
A37: Reservekapazität Belebung | B37: Reservekapazität VBB | C37: m³ | F37: – | I37: =I14-I29 -> 2460.625473
B38: Reservekapazität Einwohnerwerte 1 | C38: EWCSB120 | F38: – | I38: =Bemessung!B62 -> 9765.598726
B39: Reservekapazität Einwohnerwerte 2 | C39: % | F39: – | I39: =I38/I6*100 -> 48.82799363
A40: Faulung bei Ausnutzung Reservekapazität | B40: Volumen Faulbehälter bei Ausnutzung Reservekapazität | C40: m³ | F40: – | I40: =Bemessung!BH59 -> 1425
B41: Schlammanfall bei Ausnutzung Reservekapazität (entwässerter Schlamm) | C41: t/Jahr | F41: – | I41: =Bemessung!AY57 -> 1332.846856
A43: Zwischenergebnis 2: Faulgasnutzung
A45: Faulgasnutzung | B45: mittlere in Faulung abgebaute CSB-Fracht | C45: kg CSB/ Jahr | F45: – | I45: =Bemessung!AU56 -> 109502.7727
B46: mittlere in Faulung entstehende CH4-Fracht | C46: Nm³ CH4/Jahr | F46: – | I46: =I45*'Fixe Parameter'!C9 -> 38325.97045
B47: spezifischer elektrischer Energiegehalt | C47: kWh_elektr./Nm³CH4 | F47: – | I47: ='Fixe Parameter'!C8*I24/100 -> 0
B48: potentielle Stromproduktion pro Jahr | C48: kWh_elektr./a | F48: – | I48: =I46*I47 -> 0
B49: theoretische mittlere Leistung BHKW bei Dauerbetrieb | C49: kW | F49: – | I49: =I48/365/24 -> 0
A51: D A T E N E I N G A B E B E R E I C H II
A52: IX: Investitionskosten | B52: Investitionskosten Belebung | C52: Euro | D52: 22A | F52: 600000 | G52: 22F | I52: 0
B53: Investitionskosten Faulung | C53: Euro | G53: 23F | I53: 800000
B54: Anteil Reinvestitionskosten (maschinelle Teile Belebung / Faulung) | C54: % | D54: 24A | E54: ~ 40 | F54: 40 | G54: 24F | H54: ~ 40 | I54: 40
B55: Investitionskosten Vorklärung | C55: Euro | G55: 25F | I55: 0
B56: Investitionskosten Faulgasnutzung | C56: Euro | G56: 26F | I56: 0
B57: Sonstige Investitionskosten | C57: Euro | D57: 27A | F57: 0 | G57: 27F | I57: 0
B58: Kalkulatorischer Zinssatz (Realverzinsung) | C58: % | D58: 28A | E58: 0,0 - 5,0 | F58: 3 | G58: 28F | I58: =F58 -> 3
A59: X: zusätzliche Betriebskosten | B59: etwaige zusätzliche Personalkosten – Variante F | C59: Euro/Jahr | G59: 29F | H59: s. Handbuch | I59: 0
B60: etwaige zusätzliche sonstige Betriebskosten – Variante F | C60: Euro/Jahr | G60: 30F | H60: s. Handbuch | I60: 0
A62: Zwischenergebnis 3: Kosten Variante A / Variante F
A64: Gesamtinvestitionskosten | B64: Gesamtinvestitionskosten ohne RK | C64: Euro | F64: =F52+F57 -> 600000 | I64: =I53+I55+I56+I57 -> 800000
B65: Gesamtinvestitionskosten mit RK | C65: Euro | F65: =F64+'Berechnung Grafik Dynamisch 2'!C19 -> 765861.6315 | I65: =I64+'Berechnung Grafik Dynamisch 2'!H19 -> 1021148.842
A66: Betriebskosten | B66: Kosten für Belüftung | C66: Euro/Jahr | F66: =Bemessung!AG26 -> 37086.22266 | I66: =Bemessung!AG56 -> 34371.45835
B67: Kosten für Schlammentsorgung | C67: Euro/Jahr | F67: =Bemessung!BA26 -> 71304.54599 | I67: =Bemessung!BA56 -> 53733.71594
B68: zusätzliche Betriebskosten – Variante F | C68: Euro/Jahr | F68: – | I68: =I59+I60 -> 0
B69: Gewinn aus Eigenstromproduktion – Variante F | C69: Euro/Jahr | F69: – | I69: =Bemessung!BT56 -> 0
A70: Summe Betriebskosten | B70: Belüftung + Schlammentsorgung + zusätzliche Betriebskosten - Eigenstromproduktion | C70: Euro/Jahr | F70: =F66+F67 -> 108390.7687 | I70: =I66+I67+I68-I69 -> 88105.17428
A72: Zwischenergebnis 3B: Kostendifferenz Variante A / Variante F
A74: Einparung Gesamtinvestitionskosten Variante A | B74: Einsparung Gesamtinvestitionskosten ohne RK | C74: Euro | F74: =I64-F64 -> 200000 | I74: –
B75: Einsparung Gesamtinvestitionskosten mit RK | C75: Euro | F75: =I65-F65 -> 255287.2105 | I75: –
A76: Einsparung / Erhöung Betriebskosten Variante F | B76: Einsparung Belüftung | C76: Euro/Jahr | F76: – | I76: =F66-I66 -> 2714.764316
B77: Einsparung Schlammentsorgung | C77: Euro/Jahr | F77: – | I77: =F67-I67 -> 17570.83005
B78: Einsparung durch Eigenstromproduktion | C78: Euro/Jahr | F78: – | I78: =I69 -> 0
B79: Erhöhung durch etwaige zusätzliche Betriebskosten | C79: Euro/Jahr | F79: – | I79: =I68 -> 0
B80: Einsparung – Gesamt | C80: Euro/Jahr | F80: – | I80: =I76+I77+I78-I79 -> 20285.59437
A82: Endergebnis: Amortisationszeit Faulung
A84: Amortisationszeit Faulung | C84: Jahre | D84: ='Berechnung Grafik_Dynamisch'!Q31 -> 11.86311108
A86: Kontrollwerte zur Plausibilitätsüberprüfung
A88: Kontrollwerte Belebung | B88: N-Rückbelastung Variante F | C88: % | F88: – | H88: < 15 | I88: =Bemessung!F58 -> 10.90936714
B89: Nges_zu/CSB_zu | C89: – | E89: < 0,14 | F89: =Bemessung!K6 -> 0.09166666667 | H89: < 0,14 | I89: =Bemessung!K36 -> 0.1016669199
B90: spezifische Belüftungskosten | C90: kWh/(EW·a) | E90: 15 - 25 | F90: =Bemessung!AE26 -> 17.66010603 | H90: 10 - 20 | I90: =Bemessung!AE56 -> 16.36736112
B91: spezifische Kosten Erweiterung Belebung | C91: Euro/m³ | E91: 300 - 500 | F91: =IF(F52>0,F52/F30,"–") -> 329.2723595 | H91: 300 - 500 | I91: =IF(I52>0,I52/I30,"–") -> –
A92: Kontrollwerte Faulung | B92: oTS-Reduktion in Faulung | C92: % | F92: – | H92: 35 - 50 | I92: =Bemessung!AV56 -> 40.81693821
B93: spezifische Kosten Faulung | C93: Euro/EW | F93: – | H93: s. Handbuch | I93: =I53/I7 -> 47.05882353
B94: spezifische Kosten Faulung | C94: Euro/m³ | F94: – | H94: 800 - 1200 | I94: =I53/I32 -> 835.5255783
B95: spezifischer Biogasanfall | C95: L Biogas/(EW120·d) | F95: – | H95: s. Handbuch | I95: =I46/0.65/365/I5*1000 -> 10.76950346
K111: 0 | L111: 2000 | M111: 70 | N111: 1 | O111: JA | P111: 25 | Q111: 15 | R111: 45 | S111: 50 | T111: 25 | U111: 3 | V111: 50 | W111: 0 | X111: 1.5 | Y111: 3 | Z111: 0.9
K112: 0.5 | L112: 2100 | M112: 71 | N112: 1.1 | O112: NEIN | P112: 26 | Q112: 16 | R112: 46 | S112: 51 | T112: 26 | U112: 3.5 | V112: 51 | W112: 15 | X112: 1.6 | Y112: 4 | Z112: 1
K113: 1 | L113: 2200 | M113: 72 | N113: 1.2 | O113: – | P113: 27 | Q113: 17 | R113: 47 | S113: 52 | T113: 27 | U113: 4 | V113: 52 | W113: 16 | X113: 1.7 | Y113: 5 | Z113: 1.1
K114: =K113+0.5 -> 1.5 | L114: 2300 | M114: 73 | N114: 1.3 | O114: 35 | P114: 28 | Q114: 18 | R114: 48 | S114: 53 | T114: 28 | U114: 4.5 | V114: 53 | W114: 17 | X114: 1.8 | Y114: 6
K115: 1.5 | L115: 2400 | M115: 74 | N115: 1.4 | P115: 29 | Q115: 19 | R115: 49 | S115: 54 | T115: 29 | U115: 5 | V115: 54 | W115: 18 | X115: 1.9
K116: 2 | L116: 2500 | M116: 75 | N116: 1.5 | P116: 30 | Q116: 20 | R116: 50 | S116: 55 | T116: 30 | U116: 5.5 | V116: 55 | W116: 19 | X116: 2
K117: 2.5 | L117: 2600 | M117: 76 | N117: 1.6 | Q117: 21 | R117: 51 | S117: 56 | T117: 31 | U117: 6 | V117: 56 | W117: 20 | X117: 2.1
K118: 3 | L118: 2700 | M118: 77 | N118: 1.7 | Q118: 22 | R118: 52 | S118: 57 | T118: 32 | V118: 57 | W118: 21 | X118: 2.2
K119: 3 | L119: 2800 | M119: 78 | N119: 1.8 | Q119: 23 | R119: 53 | S119: 58 | T119: 33 | V119: 58 | W119: 22
K120: 3.5 | L120: 2900 | M120: 79 | N120: 1.9 | Q120: 24 | R120: 54 | S120: 59 | T120: 34 | V120: 59 | W120: 23
K121: 4 | L121: 3000 | M121: 80 | N121: 2 | Q121: 25 | R121: 55 | S121: 60 | T121: 35 | V121: 60 | W121: 24
K122: 4.5 | L122: 3100 | M122: 81 | Q122: 26 | R122: 56 | S122: 61 | V122: 61 | W122: 25
K123: 4.5 | L123: 3200 | M123: 82 | Q123: 27 | R123: 57 | S123: 62 | V123: 62
K124: 5 | L124: 3300 | M124: 83 | Q124: 28 | R124: 58 | S124: 63 | V124: 63
L125: 3400 | M125: 84 | Q125: 29 | R125: 59 | S125: 64 | V125: 64
L126: 3500 | M126: 85 | Q126: 30 | R126: 60 | S126: 65 | V126: 65
L127: 3600 | M127: 86 | Q127: 31 | R127: 61 | S127: 66 | V127: 66
L128: 3700 | M128: 87 | Q128: 32 | R128: 62 | S128: 67 | V128: 67
L129: 3800 | M129: 88 | Q129: 33 | R129: 63 | S129: 68 | V129: 68
L130: 3900 | M130: 89 | Q130: 34 | R130: 64 | S130: 69 | V130: 69
L131: 4000 | M131: 90 | Q131: 35 | R131: 65 | S131: 70 | V131: 70
L132: 4100 | M132: 91 | Q132: 36 | R132: 66 | V132: 71
L133: 4200 | M133: 92 | Q133: 37 | R133: 67 | V133: 72
L134: 4300 | M134: 93 | Q134: 38 | R134: 68 | V134: 73
L135: 4400 | M135: 94 | Q135: 39 | R135: 69 | V135: 74
L136: 4500 | M136: 95 | Q136: 40 | R136: 70 | V136: 75
L137: 4600 | M137: 96 | R137: 71
L138: 4700 | M138: 97 | R138: 72
L139: 4800 | M139: 98 | R139: 73
L140: 4900 | M140: 99 | R140: 74
L141: 5000 | M141: 100 | R141: 75
L142: 5100 | R142: 76
L143: 5200 | R143: 77
L144: 5300 | R144: 78
L145: 5400 | R145: 79
L146: 5500 | R146: 80
L147: 5600
L148: 5700
L149: 5800
L150: 5900
L151: 6000
L152: 6100
L153: 6200
L154: 6300
L155: 6400
L156: 6500
L157: 6600
L158: 6700
L159: 6800
L160: 6900
L161: 7000
L162: 7100
L163: 7200
L164: 7300
L165: 7400
L166: 7500
L167: 7600
L168: 7700
L169: 7800
L170: 7900
L171: 8000
L172: 8100
L173: 8200
L174: 8300
L175: 8400
L176: 8500
L177: 8600
L178: 8700
L179: 8800
L180: 8900
L181: 9000
L182: 9100
L183: 9200
L184: 9300
L185: 9400
L186: 9500
L187: 9600
L188: 9700
L189: 9800
L190: 9900
L191: 10000
L192: 10100
L193: 10200
L194: 10300
L195: 10400
L196: 10500
L197: 10600
L198: 10700
L199: 10800
L200: 10900
L201: 11000
L202: 11100
L203: 11200
L204: 11300
L205: 11400
L206: 11500
L207: 11600
L208: 11700
L209: 11800
L210: 11900
L211: 12000
L212: 12100
L213: 12200
L214: 12300
L215: 12400
L216: 12500
L217: 12600
L218: 12700
L219: 12800
L220: 12900
L221: 13000
L222: 13100
L223: 13200
L224: 13300
L225: 13400
L226: 13500
L227: 13600
L228: 13700
L229: 13800
L230: 13900
... 261 more rows

Sheet Bemessung (hidden)
B1: VARIANTE A | R1: iN,ÜS= | S1: NO3_ab/Nges_zu | T1: Nges_ab/Nges_zu | Z1: CS | AA1: ='Fixe Parameter'!C2 -> 13 | AI1: CSB/oTS | AK1: TS/CSB (rückgerechnet)
R2: ='Fixe Parameter'!C6 -> 0.06 | S2: =T2/2 -> 0.075 | T2: =(100-'Dateneingabe und Ergebnisse'!F9)/100 -> 0.15 | Z2: CX | AA2: ='Fixe Parameter'!C3 -> 1.5 | AI2: ='Fixe Parameter'!C5 -> 1.45 | AK2: =AK6/AH6 -> 1.253918495
B3: ZULAUFFRACHTEN | L3: SCHLAMMALTER | M3: SAUERSTOFFBEDARF BELEBUNG | AC3: ENERGIE UND BELÜFTUNGSKOSTEN | AH3: SCHLAMM
B4: Einwohnerwerte CSB | C4: CSB-Zulauffracht | D4: N-Zulauffracht | E4: N-Rückbelastung | F4: Anteil N-Rückbelastung | G4: VK | H4: hVK | I4: CSB-Zulauffracht Belebung | J4: N-Zulauffracht Belebung | K4: N:CSB | L4: Schlammalter | M4: CSB-OVC | N4: CSB-Entfernung ( hges) | O4: Hilfsgröße: hBB bei hges mit Einfluss von hVK | P4: CSB-Entfernung | Q4: OVC | R4: XorgN,BM | S4: NO3-N,ab | T4: Nges,ab | U4: NO3-N (OVN) | V4: OVN | W4: NO3-N (OVD) | X4: OVD | Y4: N-Entferunung IST | Z4: OV_GES | AA4: Sättigungsfaktor | AB4: erfαOC= | AC4: SAE | AD4: erforderliche Belüftungsenergie | AE4: Kontrolle über LINDNER | AF4: Strompreis | AG4: Belüftungskosten | AH4: CSBÜS | AI4: oTS-ÜS vor Faulung | AJ4: oTS-Gehalt-ÜS | AK4: TS-ÜS vor Faulung | AL4: TS-ÜS vor Faulung | AM4: CSBPS | AN4: oTS-PS vor Faulung | AO4: oTS-Gehalt-PS | AP4: oTS-Schlamm vor Faulung | AQ4: TS-Schlamm vor Faulung | AR4: spez. oTS-Gehalt nach Faulung | AS4: oTS-Schlamm nach Faulung | AT4: oTS-Reduktion in Faulung | AU4: CSB-Reduktion in Faulung | AV4: oTS-Reduktion in Faulung | AW4: TS-Schlamm nach Faulung_ALT | AX4: TS-Gehalt | AY4: zu entsorgende Schlammfracht | AZ4: spez. Schlamm-Entsorgungskosten | BA4: Schlammentsorgungs- kosten
B5: EW120 | C5: kg CSB/Jahr | D5: kg N/Jahr | E5: kg N/Jahr | F5: % | G5: - | H5: % | I5: kg CSB/Jahr | J5: kg N/Jahr | K5: - | L5: t | M5: % | N5: % | O5: % | P5: kg CSB/Jahr | Q5: kg O2/Jahr | R5: kg N/Jahr | S5: kg N/Jahr | T5: kg N/Jahr | U5: kg N/Jahr | V5: kg O2/Jahr | W5: kg N/Jahr | X5: kgO2/Jahr | Y5: % | Z5: kgO2/Jahr | AA5: - | AB5: kg O2/Jahr | AC5: kg O2/kWh | AD5: kWh/Jahr | AE5: kWh/(EW·a) | AF5: Euro/kWh | AG5: Euro/Jahr | AH5: kg CSB/Jahr | AI5: kg oTS/Jahr | AJ5: % | AK5: kg TS/Jahr | AL5: kg TS/Tag | AM5: kg CSB/Jahr | AN5: kg oTS/Jahr | AO5: % | AP5: kg oTS/Jahr | AQ5: kg TS/Jahr | AR5: g oTS/(EW120·d) | AS5: kg oTS/Jahr | AT5: kg oTS/Jahr | AU5: kg CSB/Jahr | AV5: % | AW5: kg TS/Jahr | AX5: % | AY5: t/Jahr | AZ5: Euro/t | BA5: Euro/Jahr
A6: Berechnung allgemeine Kurvenschaar | B6: 2000 | C6: =B6*0.12*365 -> 87600 | D6: =B6*0.011*365 -> 8030 | E6: 0 | F6: 0 | G6: ='Dateneingabe und Ergebnisse'!F10 -> NEIN | H6: =IF('Dateneingabe und Ergebnisse'!F11="–",0,'Dateneingabe und Ergebnisse'!F11) -> 0 | I6: =IF(G6="NEIN",C6,C6*(1-H6/100)) -> 87600 | J6: =B6*0.011*365+E6 -> 8030 | K6: =J6/I6 -> 0.09166666667 | L6: ='Dateneingabe und Ergebnisse'!F12 -> 30 | M6: =IF(G6="NEIN",IF(L6<=35,9.4345*LN(L6)+32.468-1,65),IF(L6<=35,8.8152*LN(L6)+39.505-1,70)) -> 63.5565967 | N6: ='Dateneingabe und Ergebnisse'!F8 -> 95 | O6: =(N6-H6)/(100-H6)*100 -> 95 | P6: =I6*O6/100 -> 83220 | Q6: =P6*M6/100 -> 52891.79977 | R6: =AH6*$R$2 -> 1819.692014 | S6: =J6*$S$2 -> 602.25 | T6: =J6*$T$2 -> 1204.5 | U6: =J6-R6-T6+S6 -> 5608.057986 | V6: =U6*4.3 -> 24114.64934 | W6: =J6-R6-T6 -> 5005.807986 | X6: =W6*2.9 -> 14516.84316 | Y6: =100-T6/J6*100 -> 85 | Z6: =Q6+V6-X6 -> 62489.60595 | AA6: =($AA$1/($AA$1-$AA$2)) -> 1.130434783 | AB6: =Z6*AA6 -> 70640.42412 | AC6: ='Dateneingabe und Ergebnisse'!F15 -> 2 | AD6: =AB6/AC6 -> 35320.21206 | AE6: =AD6/B6 -> 17.66010603 | AF6: ='Dateneingabe und Ergebnisse'!F16 -> 0.14 | AG6: =AD6*AF6 -> 4944.829688 | AH6: =P6*((100-M6)/100) -> 30328.20023 | AI6: =AH6/$AI$2 -> 20916.00016 | AJ6: ='Dateneingabe und Ergebnisse'!F18 -> 55 | AK6: =AI6/AJ6*100 -> 38029.0912 | AL6: =AK6/365 -> 104.1892909 | AM6: =C6-I6 -> 0 | AN6: =AM6/$AI$2 -> 0 | AO6: ='Dateneingabe und Ergebnisse'!F17 -> – | AP6: =AI6+AN6 -> 20916.00016 | AQ6: =IF(AO6<>"–",AK6+AN6/AO6*100,AK6) -> 38029.0912 | AR6: - | AS6: - | AT6: - | AV6: - | AW6: =AQ6 -> 38029.0912 | AX6: ='Dateneingabe und Ergebnisse'!F21 -> 24 | AY6: =AW6/(AX6/100)/1000 -> 158.4545466 | AZ6: ='Dateneingabe und Ergebnisse'!F22 -> 60 | BA6: =AY6*AZ6 -> 9507.272799
B7: 4000 | C7: 175200 | D7: 16060 | E7: =E6 -> 0 | F7: =F6 -> 0 | G7: =G6 -> NEIN | H7: =H6 -> 0 | I7: 175200 | J7: 16060 | K7: 0.09166666667 | L7: =L6 -> 30 | M7: =IF(G7="NEIN",IF(L7<=35,9.4345*LN(L7)+32.468-1,65),IF(L7<=35,8.8152*LN(L7)+39.505-1,70)) -> 63.5565967 | N7: =N6 -> 95 | O7: =(N7-H7)/(100-H7)*100 -> 95 | P7: =I7*O7/100 -> 166440 | Q7: =P7*M7/100 -> 105783.5995 | R7: 3639.384027 | S7: =J7*$S$2 -> 1204.5 | T7: =J7*$T$2 -> 2409 | U7: 11216.11597 | V7: =U7*4.3 -> 48229.29868 | W7: =J7-R7-T7 -> 10011.61597 | X7: =W7*2.9 -> 29033.68632 | Y7: =100-T7/J7*100 -> 85 | Z7: 124979.2119 | AA7: =($AA$1/($AA$1-$AA$2)) -> 1.130434783 | AB7: 141280.8482 | AC7: =AC6 -> 2 | AD7: 70640.42412 | AE7: 17.66010603 | AF7: =AF6 -> 0.14 | AG7: 9889.659377 | AH7: =P7*((100-M7)/100) -> 60656.40046 | AI7: 41832.00032 | AJ7: =AJ6 -> 55 | AK7: =AI7/AJ7*100 -> 76058.18239 | AL7: =AK7/365 -> 208.3785819 | AM7: 0 | AN7: 0 | AO7: =AO6 -> – | AP7: 41832.00032 | AQ7: =IF(AO7<>"–",AK7+AN7/AO7*100,AK7) -> 76058.18239 | AR7: =AR6 -> - | AS7: =AS6 -> - | AT7: =AT6 -> - | AV7: =AV6 -> - | AW7: 76058.18239 | AX7: =AX6 -> 24 | AY7: 316.9090933 | AZ7: =AZ6 -> 60 | BA7: 19014.5456
B8: 6000 | C8: 262800 | D8: 24090 | E8: =E7 -> 0 | F8: 0 | G8: NEIN | H8: 0 | I8: 262800 | J8: 24090 | K8: 0.09166666667 | L8: 30 | M8: 63.5565967 | N8: =N7 -> 95 | O8: 95 | P8: 249660 | Q8: 158675.3993 | R8: 5459.076041 | S8: 1806.75 | T8: 3613.5 | U8: 16824.17396 | V8: 72343.94802 | W8: 15017.42396 | X8: =W8*2.9 -> 43550.52948 | Y8: 85 | Z8: 187468.8179 | AA8: 1.130434783 | AB8: 211921.2724 | AC8: 2 | AD8: 105960.6362 | AE8: 17.66010603 | AF8: 0.14 | AG8: 14834.48907 | AH8: =P8*((100-M8)/100) -> 90984.60069 | AI8: 62748.00047 | AJ8: 55 | AK8: =AI8/AJ8*100 -> 114087.2736 | AL8: 312.5678728 | AM8: 0 | AN8: 0 | AO8: =AO7 -> – | AP8: 62748.00047 | AQ8: 114087.2736 | AR8: =AR7 -> - | AS8: =AS7 -> - | AT8: =AT7 -> - | AV8: =AV7 -> - | AW8: 114087.2736 | AX8: 24 | AY8: 475.3636399 | AZ8: 60 | BA8: 28521.8184
B9: 8000 | C9: 350400 | D9: 32120 | E9: 0 | F9: 0 | G9: NEIN | H9: 0 | I9: 350400 | J9: 32120 | K9: 0.09166666667 | L9: 30 | M9: 63.5565967 | N9: 95 | O9: 95 | P9: 332880 | Q9: 211567.1991 | R9: 7278.768055 | S9: 2409 | T9: 4818 | U9: 22432.23195 | V9: 96458.59736 | W9: 20023.23195 | X9: =W9*2.9 -> 58067.37264 | Y9: 85 | Z9: 249958.4238 | AA9: 1.130434783 | AB9: 282561.6965 | AC9: 2 | AD9: 141280.8482 | AE9: 17.66010603 | AF9: 0.14 | AG9: 19779.31875 | AH9: =P9*((100-M9)/100) -> 121312.8009 | AI9: 83664.00063 | AJ9: 55 | AK9: 152116.3648 | AL9: 416.7571638 | AM9: 0 | AN9: 0 | AO9: – | AP9: 83664.00063 | AQ9: 152116.3648 | AR9: - | AS9: - | AT9: - | AV9: - | AW9: 152116.3648 | AX9: 24 | AY9: 633.8181866 | AZ9: 60 | BA9: 38029.0912
B10: 10000 | C10: 438000 | D10: 40150 | E10: 0 | F10: 0 | G10: NEIN | H10: 0 | I10: 438000 | J10: 40150 | K10: 0.09166666667 | L10: 30 | M10: 63.5565967 | N10: 95 | O10: 95 | P10: 416100 | Q10: 264458.9989 | R10: 9098.460069 | S10: 3011.25 | T10: 6022.5 | U10: 28040.28993 | V10: 120573.2467 | W10: 25029.03993 | X10: 72584.2158 | Y10: 85 | Z10: 312448.0298 | AA10: 1.130434783 | AB10: 353202.1206 | AC10: 2 | AD10: 176601.0603 | AE10: 17.66010603 | AF10: 0.14 | AG10: 24724.14844 | AH10: 151641.0011 | AI10: 104580.0008 | AJ10: 55 | AK10: 190145.456 | AL10: 520.9464547 | AM10: 0 | AN10: 0 | AO10: – | AP10: 104580.0008 | AQ10: 190145.456 | AR10: - | AS10: - | AT10: - | AV10: - | AW10: 190145.456 | AX10: 24 | AY10: 792.2727332 | AZ10: 60 | BA10: 47536.36399
B11: 12000 | C11: 525600 | D11: 48180 | E11: 0 | F11: 0 | G11: NEIN | H11: 0 | I11: 525600 | J11: 48180 | K11: 0.09166666667 | L11: 30 | M11: 63.5565967 | N11: 95 | O11: 95 | P11: 499320 | Q11: 317350.7986 | R11: 10918.15208 | S11: 3613.5 | T11: 7227 | U11: 33648.34792 | V11: 144687.896 | W11: 30034.84792 | X11: 87101.05896 | Y11: 85 | Z11: 374937.6357 | AA11: 1.130434783 | AB11: 423842.5447 | AC11: 2 | AD11: 211921.2724 | AE11: 17.66010603 | AF11: 0.14 | AG11: 29668.97813 | AH11: 181969.2014 | AI11: 125496.0009 | AJ11: 55 | AK11: 228174.5472 | AL11: 625.1357457 | AM11: 0 | AN11: 0 | AO11: – | AP11: 125496.0009 | AQ11: 228174.5472 | AR11: - | AS11: - | AT11: - | AV11: - | AW11: 228174.5472 | AX11: 24 | AY11: 950.7272799 | AZ11: 60 | BA11: 57043.63679
B12: 14000 | C12: 613200 | D12: 56210 | E12: 0 | F12: 0 | G12: NEIN | H12: 0 | I12: 613200 | J12: 56210 | K12: 0.09166666667 | L12: 30 | M12: 63.5565967 | N12: 95 | O12: 95 | P12: 582540 | Q12: 370242.5984 | R12: 12737.8441 | S12: 4215.75 | T12: 8431.5 | U12: 39256.4059 | V12: 168802.5454 | W12: 35040.6559 | X12: 101617.9021 | Y12: 85 | Z12: 437427.2417 | AA12: 1.130434783 | AB12: 494482.9688 | AC12: 2 | AD12: 247241.4844 | AE12: 17.66010603 | AF12: 0.14 | AG12: 34613.80782 | AH12: 212297.4016 | AI12: 146412.0011 | AJ12: 55 | AK12: 266203.6384 | AL12: 729.3250366 | AM12: 0 | AN12: 0 | AO12: – | AP12: 146412.0011 | AQ12: 266203.6384 | AR12: - | AS12: - | AT12: - | AV12: - | AW12: 266203.6384 | AX12: 24 | AY12: 1109.181827 | AZ12: 60 | BA12: 66550.90959
B13: 16000 | C13: 700800 | D13: 64240 | E13: 0 | F13: 0 | G13: NEIN | H13: 0 | I13: 700800 | J13: 64240 | K13: 0.09166666667 | L13: 30 | M13: 63.5565967 | N13: 95 | O13: 95 | P13: 665760 | Q13: 423134.3982 | R13: 14557.53611 | S13: 4818 | T13: 9636 | U13: 44864.46389 | V13: 192917.1947 | W13: 40046.46389 | X13: 116134.7453 | Y13: 85 | Z13: 499916.8476 | AA13: 1.130434783 | AB13: 565123.393 | AC13: 2 | AD13: 282561.6965 | AE13: 17.66010603 | AF13: 0.14 | AG13: 39558.63751 | AH13: 242625.6018 | AI13: 167328.0013 | AJ13: 55 | AK13: 304232.7296 | AL13: 833.5143276 | AM13: 0 | AN13: 0 | AO13: – | AP13: 167328.0013 | AQ13: 304232.7296 | AR13: - | AS13: - | AT13: - | AV13: - | AW13: 304232.7296 | AX13: 24 | AY13: 1267.636373 | AZ13: 60 | BA13: 76058.18239
B14: 18000 | C14: 788400 | D14: 72270 | E14: 0 | F14: 0 | G14: NEIN | H14: 0 | I14: 788400 | J14: 72270 | K14: 0.09166666667 | L14: 30 | M14: 63.5565967 | N14: 95 | O14: 95 | P14: 748980 | Q14: 476026.1979 | R14: 16377.22812 | S14: 5420.25 | T14: 10840.5 | U14: 50472.52188 | V14: 217031.8441 | W14: 45052.27188 | X14: 130651.5884 | Y14: 85 | Z14: 562406.4536 | AA14: 1.130434783 | AB14: 635763.8171 | AC14: 2 | AD14: 317881.9085 | AE14: 17.66010603 | AF14: 0.14 | AG14: 44503.4672 | AH14: 272953.8021 | AI14: 188244.0014 | AJ14: 55 | AK14: 342261.8208 | AL14: 937.7036185 | AM14: 0 | AN14: 0 | AO14: – | AP14: 188244.0014 | AQ14: 342261.8208 | AR14: - | AS14: - | AT14: - | AV14: - | AW14: 342261.8208 | AX14: 24 | AY14: 1426.09092 | AZ14: 60 | BA14: 85565.45519
B15: 20000 | C15: 876000 | D15: 80300 | E15: 0 | F15: 0 | G15: NEIN | H15: 0 | I15: 876000 | J15: 80300 | K15: 0.09166666667 | L15: 30 | M15: 63.5565967 | N15: 95 | O15: 95 | P15: 832200 | Q15: 528917.9977 | R15: 18196.92014 | S15: 6022.5 | T15: 12045 | U15: 56080.57986 | V15: 241146.4934 | W15: 50058.07986 | X15: 145168.4316 | Y15: 85 | Z15: 624896.0595 | AA15: 1.130434783 | AB15: 706404.2412 | AC15: 2 | AD15: 353202.1206 | AE15: 17.66010603 | AF15: 0.14 | AG15: 49448.29688 | AH15: 303282.0023 | AI15: 209160.0016 | AJ15: 55 | AK15: 380290.912 | AL15: 1041.892909 | AM15: 0 | AN15: 0 | AO15: – | AP15: 209160.0016 | AQ15: 380290.912 | AR15: - | AS15: - | AT15: - | AV15: - | AW15: 380290.912 | AX15: 24 | AY15: 1584.545466 | AZ15: 60 | BA15: 95072.72799
B16: 22000 | C16: 963600 | D16: 88330 | E16: 0 | F16: 0 | G16: NEIN | H16: 0 | I16: 963600 | J16: 88330 | K16: 0.09166666667 | L16: 30 | M16: 63.5565967 | N16: 95 | O16: 95 | P16: 915420 | Q16: 581809.7975 | R16: 20016.61215 | S16: 6624.75 | T16: 13249.5 | U16: 61688.63785 | V16: 265261.1428 | W16: 55063.88785 | X16: 159685.2748 | Y16: 85 | Z16: 687385.6655 | AA16: 1.130434783 | AB16: 777044.6653 | AC16: 2 | AD16: 388522.3327 | AE16: 17.66010603 | AF16: 0.14 | AG16: 54393.12657 | AH16: 333610.2025 | AI16: 230076.0017 | AJ16: 55 | AK16: 418320.0032 | AL16: 1146.0822 | AM16: 0 | AN16: 0 | AO16: – | AP16: 230076.0017 | AQ16: 418320.0032 | AR16: - | AS16: - | AT16: - | AV16: - | AW16: 418320.0032 | AX16: 24 | AY16: 1743.000013 | AZ16: 60 | BA16: 104580.0008
B17: 24000 | C17: 1051200 | D17: 96360 | E17: 0 | F17: 0 | G17: NEIN | H17: 0 | I17: 1051200 | J17: 96360 | K17: 0.09166666667 | L17: 30 | M17: 63.5565967 | N17: 95 | O17: 95 | P17: 998640 | Q17: 634701.5973 | R17: 21836.30416 | S17: 7227 | T17: 14454 | U17: 67296.69584 | V17: 289375.7921 | W17: 60069.69584 | X17: 174202.1179 | Y17: 85 | Z17: 749875.2714 | AA17: 1.130434783 | AB17: 847685.0894 | AC17: 2 | AD17: 423842.5447 | AE17: 17.66010603 | AF17: 0.14 | AG17: 59337.95626 | AH17: 363938.4027 | AI17: 250992.0019 | AJ17: 55 | AK17: 456349.0943 | AL17: 1250.271491 | AM17: 0 | AN17: 0 | AO17: – | AP17: 250992.0019 | AQ17: 456349.0943 | AR17: - | AS17: - | AT17: - | AV17: - | AW17: 456349.0943 | AX17: 24 | AY17: 1901.45456 | AZ17: 60 | BA17: 114087.2736
B18: 26000 | C18: 1138800 | D18: 104390 | E18: 0 | F18: 0 | G18: NEIN | H18: 0 | I18: 1138800 | J18: 104390 | K18: 0.09166666667 | L18: 30 | M18: 63.5565967 | N18: 95 | O18: 95 | P18: 1081860 | Q18: 687593.397 | R18: 23655.99618 | S18: 7829.25 | T18: 15658.5 | U18: 72904.75382 | V18: 313490.4414 | W18: 65075.50382 | X18: 188718.9611 | Y18: 85 | Z18: 812364.8774 | AA18: 1.130434783 | AB18: 918325.5136 | AC18: 2 | AD18: 459162.7568 | AE18: 17.66010603 | AF18: 0.14 | AG18: 64282.78595 | AH18: 394266.603 | AI18: 271908.002 | AJ18: 55 | AK18: 494378.1855 | AL18: 1354.460782 | AM18: 0 | AN18: 0 | AO18: – | AP18: 271908.002 | AQ18: 494378.1855 | AR18: - | AS18: - | AT18: - | AV18: - | AW18: 494378.1855 | AX18: 24 | AY18: 2059.909106 | AZ18: 60 | BA18: 123594.5464
B19: 28000 | C19: 1226400 | D19: 112420 | E19: 0 | F19: 0 | G19: NEIN | H19: 0 | I19: 1226400 | J19: 112420 | K19: 0.09166666667 | L19: 30 | M19: 63.5565967 | N19: 95 | O19: 95 | P19: 1165080 | Q19: 740485.1968 | R19: 25475.68819 | S19: 8431.5 | T19: 16863 | U19: 78512.81181 | V19: 337605.0908 | W19: 70081.31181 | X19: 203235.8042 | Y19: 85 | Z19: 874854.4833 | AA19: 1.130434783 | AB19: 988965.9377 | AC19: 2 | AD19: 494482.9688 | AE19: 17.66010603 | AF19: 0.14 | AG19: 69227.61564 | AH19: 424594.8032 | AI19: 292824.0022 | AJ19: 55 | AK19: 532407.2767 | AL19: 1458.650073 | AM19: 0 | AN19: 0 | AO19: – | AP19: 292824.0022 | AQ19: 532407.2767 | AR19: - | AS19: - | AT19: - | AV19: - | AW19: 532407.2767 | AX19: 24 | AY19: 2218.363653 | AZ19: 60 | BA19: 133101.8192
B20: 30000 | C20: 1314000 | D20: 120450 | E20: 0 | F20: 0 | G20: NEIN | H20: 0 | I20: 1314000 | J20: 120450 | K20: 0.09166666667 | L20: 30 | M20: 63.5565967 | N20: 95 | O20: 95 | P20: 1248300 | Q20: 793376.9966 | R20: 27295.38021 | S20: 9033.75 | T20: 18067.5 | U20: 84120.86979 | V20: 361719.7401 | W20: 75087.11979 | X20: 217752.6474 | Y20: 85 | Z20: 937344.0893 | AA20: 1.130434783 | AB20: 1059606.362 | AC20: 2 | AD20: 529803.1809 | AE20: 17.66010603 | AF20: 0.14 | AG20: 74172.44533 | AH20: 454923.0034 | AI20: 313740.0024 | AJ20: 55 | AK20: 570436.3679 | AL20: 1562.839364 | AM20: 0 | AN20: 0 | AO20: – | AP20: 313740.0024 | AQ20: 570436.3679 | AR20: - | AS20: - | AT20: - | AV20: - | AW20: 570436.3679 | AX20: 24 | AY20: 2376.8182 | AZ20: 60 | BA20: 142609.092
B21: 32000 | C21: 1401600 | D21: 128480 | E21: 0 | F21: 0 | G21: NEIN | H21: 0 | I21: 1401600 | J21: 128480 | K21: 0.09166666667 | L21: 30 | M21: 63.5565967 | N21: 95 | O21: 95 | P21: 1331520 | Q21: 846268.7963 | R21: 29115.07222 | S21: 9636 | T21: 19272 | U21: 89728.92778 | V21: 385834.3895 | W21: 80092.92778 | X21: 232269.4906 | Y21: 85 | Z21: 999833.6952 | AA21: 1.130434783 | AB21: 1130246.786 | AC21: 2 | AD21: 565123.393 | AE21: 17.66010603 | AF21: 0.14 | AG21: 79117.27501 | AH21: 485251.2037 | AI21: 334656.0025 | AJ21: 55 | AK21: 608465.4591 | AL21: 1667.028655 | AM21: 0 | AN21: 0 | AO21: – | AP21: 334656.0025 | AQ21: 608465.4591 | AR21: - | AS21: - | AT21: - | AV21: - | AW21: 608465.4591 | AX21: 24 | AY21: 2535.272746 | AZ21: 60 | BA21: 152116.3648
B22: 34000 | C22: 1489200 | D22: 136510 | E22: 0 | F22: 0 | G22: NEIN | H22: 0 | I22: 1489200 | J22: 136510 | K22: 0.09166666667 | L22: 30 | M22: 63.5565967 | N22: 95 | O22: 95 | P22: 1414740 | Q22: 899160.5961 | R22: 30934.76423 | S22: 10238.25 | T22: 20476.5 | U22: 95336.98577 | V22: 409949.0388 | W22: 85098.73577 | X22: 246786.3337 | Y22: 85 | Z22: 1062323.301 | AA22: 1.130434783 | AB22: 1200887.21 | AC22: 2 | AD22: 600443.605 | AE22: 17.66010603 | AF22: 0.14 | AG22: 84062.1047 | AH22: 515579.4039 | AI22: 355572.0027 | AJ22: 55 | AK22: 646494.5503 | AL22: 1771.217946 | AM22: 0 | AN22: 0 | AO22: – | AP22: 355572.0027 | AQ22: 646494.5503 | AR22: - | AS22: - | AT22: - | AV22: - | AW22: 646494.5503 | AX22: 24 | AY22: 2693.727293 | AZ22: 60 | BA22: 161623.6376
B23: 36000 | C23: 1576800 | D23: 144540 | E23: 0 | F23: 0 | G23: NEIN | H23: 0 | I23: 1576800 | J23: 144540 | K23: 0.09166666667 | L23: 30 | M23: 63.5565967 | N23: 95 | O23: 95 | P23: 1497960 | Q23: 952052.3959 | R23: 32754.45625 | S23: 10840.5 | T23: 21681 | U23: 100945.0438 | V23: 434063.6881 | W23: 90104.54375 | X23: 261303.1769 | Y23: 85 | Z23: 1124812.907 | AA23: 1.130434783 | AB23: 1271527.634 | AC23: 2 | AD23: 635763.8171 | AE23: 17.66010603 | AF23: 0.14 | AG23: 89006.93439 | AH23: 545907.6041 | AI23: 376488.0028 | AJ23: 55 | AK23: 684523.6415 | AL23: 1875.407237 | AM23: 0 | AN23: 0 | AO23: – | AP23: 376488.0028 | AQ23: 684523.6415 | AR23: - | AS23: - | AT23: - | AV23: - | AW23: 684523.6415 | AX23: 24 | AY23: 2852.18184 | AZ23: 60 | BA23: 171130.9104
B24: 38000 | C24: 1664400 | D24: 152570 | E24: 0 | F24: 0 | G24: NEIN | H24: 0 | I24: 1664400 | J24: 152570 | K24: 0.09166666667 | L24: 30 | M24: 63.5565967 | N24: 95 | O24: 95 | P24: 1581180 | Q24: 1004944.196 | R24: 34574.14826 | S24: 11442.75 | T24: 22885.5 | U24: 106553.1017 | V24: 458178.3375 | W24: 95110.35174 | X24: 275820.02 | Y24: 85 | Z24: 1187302.513 | AA24: 1.130434783 | AB24: 1342168.058 | AC24: 2 | AD24: 671084.0291 | AE24: 17.66010603 | AF24: 0.14 | AG24: 93951.76408 | AH24: 576235.8043 | AI24: 397404.003 | AJ24: 55 | AK24: 722552.7327 | AL24: 1979.596528 | AM24: 0 | AN24: 0 | AO24: – | AP24: 397404.003 | AQ24: 722552.7327 | AR24: - | AS24: - | AT24: - | AV24: - | AW24: 722552.7327 | AX24: 24 | AY24: 3010.636386 | AZ24: 60 | BA24: 180638.1832
B25: 40000 | C25: 1752000 | D25: 160600 | E25: 0 | F25: 0 | G25: NEIN | H25: 0 | I25: 1752000 | J25: 160600 | K25: 0.09166666667 | L25: 30 | M25: 63.5565967 | N25: 95 | O25: 95 | P25: 1664400 | Q25: 1057835.995 | R25: 36393.84027 | S25: 12045 | T25: 24090 | U25: 112161.1597 | V25: 482292.9868 | W25: 100116.1597 | X25: 290336.8632 | Y25: 85 | Z25: 1249792.119 | AA25: 1.130434783 | AB25: 1412808.482 | AC25: 2 | AD25: 706404.2412 | AE25: 17.66010603 | AF25: 0.14 | AG25: 98896.59377 | AH25: 606564.0046 | AI25: 418320.0032 | AJ25: 55 | AK25: 760581.8239 | AL25: 2083.785819 | AM25: 0 | AN25: 0 | AO25: – | AP25: 418320.0032 | AQ25: 760581.8239 | AR25: - | AS25: - | AT25: - | AV25: - | AW25: 760581.8239 | AX25: 24 | AY25: 3169.090933 | AZ25: 60 | BA25: 190145.456
A26: Mittlere Belastung Kläranlage | B26: ='Dateneingabe und Ergebnisse'!F5 -> 15000 | C26: 657000 | D26: 60225 | E26: 0 | F26: 0 | G26: NEIN | H26: 0 | I26: 657000 | J26: 60225 | K26: 0.09166666667 | L26: 30 | M26: 63.5565967 | N26: 95 | O26: 95 | P26: 624150 | Q26: 396688.4983 | R26: 13647.6901 | S26: 4516.875 | T26: 9033.75 | U26: 42060.4349 | V26: 180859.8701 | W26: 37543.5599 | X26: 108876.3237 | Y26: 85 | Z26: 468672.0446 | AA26: =($AA$1/($AA$1-$AA$2)) -> 1.130434783 | AB26: 529803.1809 | AC26: 2 | AD26: 264901.5904 | AE26: 17.66010603 | AF26: 0.14 | AG26: 37086.22266 | AH26: 227461.5017 | AI26: 156870.0012 | AJ26: 55 | AK26: 285218.184 | AL26: 781.4196821 | AM26: 0 | AN26: 0 | AO26: – | AP26: 156870.0012 | AQ26: 285218.184 | AR26: - | AS26: - | AT26: - | AV26: - | AW26: 285218.184 | AX26: 24 | AY26: 1188.4091 | AZ26: 60 | BA26: 71304.54599
A27: Bemessung Aerobie | B27: ='Dateneingabe und Ergebnisse'!F6 -> 20000 | C27: 876000 | D27: 80300 | E27: 0 | F27: 0 | G27: NEIN | H27: 0 | I27: =IF(G27="NEIN",C27,C27*(1-H27/100)) -> 876000 | J27: =B27*0.011*365+E27 -> 80300 | K27: =J27/I27 -> 0.09166666667 | L27: 30 | M27: 63.5565967 | N27: 85 | O27: =(N27-H27)/(100-H27)*100 -> 85 | P27: =I27*O27/100 -> 744600 | Q27: =P27*M27/100 -> 473242.419 | R27: =AH27*$R$2 -> 16281.45486 | S27: =J27*$S$2 -> 6022.5 | T27: =J27*T29 -> 24090 | U27: =J27-R27-T27+S27 -> 45951.04514 | V27: =U27*4.3 -> 197589.4941 | W27: =J27-R27-T27 -> 39928.54514 | X27: =W27*2.9 -> 115792.7809 | Y27: =100-T27/J27*100 -> 70 | Z27: =Q27+V27-X27 -> 555039.1322 | AA27: =($AA$1/($AA$1-$AA$2)) -> 1.130434783 | AB27: =Z27*AA27 -> 627435.5408 | AH27: =P27*((100-M27)/100) -> 271357.581 | AI27: =AH27/$AI$2 -> 187143.1593 | AJ27: 55 | AK27: 340260.2896 | AL27: =AK27/365 -> 932.2199716 | AM27: =C27-I27 -> 0 | AN27: =AM27/$AI$2 -> 0 | AO27: – | AP27: 187143.1593 | AQ27: 340260.2896 | AR27: - | AS27: - | AT27: - | AV27: - | AW27: 340260.2896 | AX27: 24 | AY27: 1417.751207 | AZ27: 60 | BA27: =AY27*AZ27 -> 85065.07241
N28: =Q6+AH6+AM6 -> 83220 | T28: Nges_ab/Nges_zu-1.AEVkA
A29: Hilfslinie Amortisationszeit | M29: Kontrolle CSB-Wirkungsgrad mit VK | N29: =N28/C6*100 -> 95 | T29: 0.3
B30: VARIANTE F
D31: N/oTS_ÜS = | E31: ='Fixe Parameter'!C6*'Fixe Parameter'!C5 -> 0.087 | AK31: TS/CSB (rückgerechnet)
D32: N/oTS_PS = | E32: ='Fixe Parameter'!C7 -> 0.06 | AK32: =AK36/AH36 -> 1.149425287
B33: ZULAUFFRACHTEN | L33: SCHLAMMALTER | M33: SAUERSTOFFBEDARF BELEBUNG | AC33: ENERGIE UND BELÜFTUNGSKOSTEN | AH33: SCHLAMM | BC33: Bemessung Faulung | BK33: Faulgasnutzung
B34: Einwohnerwerte CSB | C34: CSB-Zulauffracht | D34: N-Zulauffracht | E34: N-Rückbelastung | F34: Anteil N-Rückbelastung | G34: VK | H34: hVK | I34: CSB-Zulauffracht Belebung | J34: N-Zulauffracht Belebung | K34: N:CSB | L34: Schlammalter | M34: CSB-OVC | N34: CSB-Entfernung ( hges) | O34: Hilfsgröße: hBB bei hges mit Einfluss von hVK | P34: CSB-Entfernung | Q34: OVC | R34: XorgN,BM | S34: NO3-N,ab | T34: Nges,ab | U34: NO3-N (OVN) | V34: OVN | W34: NO3-N (OVD) | X34: OVD | Y34: N-Entferunung IST | Z34: OV_GES | AA34: Sättigungsfaktor | AB34: erfαOC= | AC34: SAE | AD34: erforderliche Belüftungsenergie | AE34: Kontrolle über LINDNER | AF34: Strompreis | AG34: Belüftungskosten | AH34: CSBÜS | AI34: oTS-ÜS vor Faulung | AJ34: oTS-Gehalt-ÜS | AK34: TS-ÜS vor Faulung | AL34: TS-ÜS vor Faulung | AM34: CSBPS | AN34: oTS-PS vor Faulung | AO34: oTS-Gehalt-PS | AP34: oTS-Schlamm vor Faulung | AQ34: TS-Schlamm vor Faulung | AR34: spez. oTS-Gehalt nach Faulung | AS34: oTS-Schlamm nach Faulung | AT34: oTS-Reduktion in Faulung | AU34: CSB-Reduktion in Faulung | AV34: oTS-Reduktion durch Faulung | AW34: TS-Schlamm nach Faulung_ALT | AX34: TS-Gehalt | AY34: zu entsorgende Schlammfracht | AZ34: spez. Schlamm-Entsorgungskosten | BA34: Schlammentsorgungs- kosten | BC34: Schlammtrockensubstanz Zulauf Faulung | BD34: Schlammtrockensubstanz Zulauf Faulung | BE34: TS-Gehalt Zulauf Faulung | BF34: Schlammvolumenstrom Zulauf Faulung | BG34: Faulzeit | BH34: Bemessungsvolumen | BI34: anaerobe Raumbelastung | BK34: Faulgasnutzung | BL34: Mittlere in Faulung abgebaute CSB-Fracht | BM34: spezifische Methanprotuktion | BN34: CH4-Fracht | BO34: Energiegehalt Methan | BP34: elektr. Wirkungsgrad | BQ34: spezifischer elektrischer Energiegehalt | BR34: potentielle Stromproduktion pro Jahr | BS34: Strompreis (oder Einspeistarif) | BT34: jährliche Einsp. aus Eingenstromproduktion
B35: EW120 | C35: kg CSB/Jahr | D35: kg N/Jahr | E35: kg N/Jahr | F35: % | G35: - | H35: % | I35: kg CSB/Jahr | J35: kg N/Jahr | K35: - | L35: t | M35: % | N35: % | O35: % | P35: kg CSB/Jahr | Q35: kg O2/Jahr | R35: kg N/Jahr | S35: kg N/Jahr | T35: kg N/Jahr | U35: kg N/Jahr | V35: kg O2/Jahr | W35: kg N/Jahr | X35: kgO2/Jahr | Y35: % | Z35: kgO2/Jahr | AA35: - | AB35: kg O2/Jahr | AC35: kg O2/kWh | AD35: kWh/Jahr | AE35: kWh/(EW·a) | AF35: Euro/kWh | AG35: Euro/Jahr | AH35: kg CSB/Jahr | AI35: kg oTS/Jahr | AJ35: % | AK35: kg TS/Jahr | AL35: kg TS/Tag | AM35: kg CSB/Jahr | AN35: kg oTS/Jahr | AO35: % | AP35: kg oTS/Jahr | AQ35: kg TS/Jahr | AR35: g oTS/(EW120·d) | AS35: kg oTS/Jahr | AT35: kg oTS/Jahr | AU35: kg CSB/Jahr | AV35: % | AW35: kg TS/Jahr | AX35: % | AY35: t/Jahr | AZ35: Euro/t | BA35: Euro/Jahr | BC35: kg TS/Jahr | BD35: kg TS/d | BE35: % | BF35: m³/d | BG35: d | BH35: m³ | BI35: kg oTS/(m³·d) | BK35: – | BL35: kg CSB/ Jahr | BM35: Nm³ CH4/kg CSB | BN35: Nm³ CH4/Jahr | BO35: kWh/m³ CH4 | BP35: % | BQ35: kWh_elektr./m³CH4 | BR35: kWh_elektr./a | BS35: Euro/kWh | BT35: Euro/a
A36: Berechnung allgemeine Kurvenschaar | B36: 2000 | C36: =B36*0.12*365 -> 87600 | D36: =B36*0.011*365 -> 8030 | E36: =($E$31*AI36+$E$32*AN36)*AV36/100 -> 876.0221817 | F36: =E36/D36*100 -> 10.90936714 | G36: ='Dateneingabe und Ergebnisse'!I10 -> NEIN | H36: =IF('Dateneingabe und Ergebnisse'!I11="–",0,'Dateneingabe und Ergebnisse'!I11) -> 0 | I36: =IF(G36="NEIN",C36,C36*(1-H36/100)) -> 87600 | J36: =B36*0.011*365+E36 -> 8906.022182 | K36: =J36/I36 -> 0.1016669199 | L36: ='Dateneingabe und Ergebnisse'!I12 -> 15 | M36: =IF(G36="NEIN",9.4345*LN(L36)+32.468-1,8.8152*LN(L36)+39.505-1) -> 57.01709962 | N36: ='Dateneingabe und Ergebnisse'!I8 -> 95 | O36: =(N36-H36)/(100-H36)*100 -> 95 | P36: =I36*O36/100 -> 83220 | Q36: =P36*M36/100 -> 47449.63031 | R36: =AH36*$R$2 -> 2146.222182 | S36: =J36*$S$2 -> 667.9516636 | T36: =J36*$T$2 -> 1335.903327 | U36: =J36-R36-T36+S36 -> 6091.848336 | V36: =U36*4.3 -> 26194.94785 | W36: =J36-R36-T36 -> 5423.896673 | X36: =W36*2.9 -> 15729.30035 | Y36: =100-T36/J36*100 -> 85 | Z36: =Q36+V36-X36 -> 57915.2778 | AA36: =($AA$1/($AA$1-$AA$2)) -> 1.130434783 | AB36: =Z36*AA36 -> 65469.44447 | AC36: ='Dateneingabe und Ergebnisse'!I15 -> 2 | AD36: =AB36/AC36 -> 32734.72224 | AE36: =AD36/B36 -> 16.36736112 | AF36: ='Dateneingabe und Ergebnisse'!F16 -> 0.14 | AG36: =AD36*AF36 -> 4582.861113 | AH36: =P36*((100-M36)/100) -> 35770.36969 | AI36: =AH36/$AI$2 -> 24669.22048 | AJ36: ='Dateneingabe und Ergebnisse'!I18 -> 60 | AK36: =AI36/AJ36*100 -> 41115.36746 | AL36: =AK36/365 -> 112.6448424 | AM36: =C36-I36 -> 0 | AN36: =AM36/$AI$2 -> 0 | AO36: ='Dateneingabe und Ergebnisse'!I17 -> – | AP36: =AI36+AN36 -> 24669.22048 | AQ36: =IF(AO36<>"–",AK36+AN36/AO36*100,AK36) -> 41115.36746 | AR36: ='Fixe Parameter'!C4 -> 20 | AS36: =AR36/1000*B36*365 -> 14600 | AT36: =+AP36-AS36 -> 10069.22048 | AU36: =AT36*$AI$2 -> 14600.36969 | AV36: =AT36/AP36*100 -> 40.81693821 | AW36: =AQ36-AT36 -> 31046.14699 | AX36: ='Dateneingabe und Ergebnisse'!I21 -> 26 | AY36: =AW36/(AX36/100)/1000 -> 119.4082576 | AZ36: ='Dateneingabe und Ergebnisse'!I22 -> 60 | BA36: =AY36*AZ36 -> 7164.495458 | BK36: ='Dateneingabe und Ergebnisse'!I23 -> NEIN | BL36: =AU36 -> 14600.36969 | BM36: 0.35 | BN36: =BL36*BM36 -> 5110.129393 | BO36: ='Fixe Parameter'!C8 -> 10 | BP36: ='Dateneingabe und Ergebnisse'!I24 -> 0 | BQ36: =BO36*BP36/100 -> 0 | BR36: =IF(BK36="NEIN",0,BN36*BQ36) -> 0 | BS36: ='Dateneingabe und Ergebnisse'!I25 -> 0 | BT36: =BR36*BS36 -> 0
B37: 4000 | C37: 175200 | D37: 16060 | E37: 1752.044363 | F37: =E37/D37*100 -> 10.90936714 | G37: =G36 -> NEIN | H37: =H36 -> 0 | I37: 175200 | J37: 17812.04436 | K37: 0.1016669199 | L37: =L36 -> 15 | M37: 57.01709962 | N37: =N36 -> 95 | O37: =(N37-H37)/(100-H37)*100 -> 95 | P37: =I37*O37/100 -> 166440 | Q37: =P37*M37/100 -> 94899.26061 | R37: 4292.444363 | S37: =J37*$S$2 -> 1335.903327 | T37: =J37*$T$2 -> 2671.806654 | U37: =J37-R37-T37+S37 -> 12183.69667 | V37: =U37*4.3 -> 52389.89569 | W37: =J37-R37-T37 -> 10847.79335 | X37: =W37*2.9 -> 31458.6007 | Y37: =100-T37/J37*100 -> 85 | Z37: 115830.5556 | AA37: =AA36 -> 1.130434783 | AB37: 130938.8889 | AC37: =AC36 -> 2 | AD37: 65469.44447 | AE37: 16.36736112 | AF37: =AF36 -> 0.14 | AG37: 9165.722226 | AH37: =P37*((100-M37)/100) -> 71540.73939 | AI37: 49338.44096 | AJ37: =AJ36 -> 60 | AK37: =AI37/AJ37*100 -> 82230.73493 | AL37: =AK37/365 -> 225.2896847 | AM37: 0 | AN37: 0 | AO37: =AO36 -> – | AP37: 49338.44096 | AQ37: =IF(AO37<>"–",AK37+AN37/AO37*100,AK37) -> 82230.73493 | AR37: =AR36 -> 20 | AS37: 29200 | AT37: 20138.44096 | AU37: =AT37*$AI$2 -> 29200.73939 | AV37: 40.81693821 | AW37: =AQ37-AT37 -> 62092.29397 | AX37: =AX36 -> 26 | AY37: 238.8165153 | AZ37: =AZ36 -> 60 | BA37: 14328.99092 | BK37: =BK36 -> NEIN | BL37: 29200.73939 | BM37: =BM36 -> 0.35 | BN37: =BL37*BM37 -> 10220.25879 | BO37: =BO36 -> 10 | BP37: =BP36 -> 0 | BQ37: =BO37*BP37/100 -> 0 | BR37: =IF(BK37="NEIN",0,BN37*BQ37) -> 0 | BS37: =BS36 -> 0 | BT37: =BR37*BS37 -> 0
B38: 6000 | C38: 262800 | D38: 24090 | E38: 2628.066545 | F38: 10.90936714 | G38: NEIN | H38: 0 | I38: 262800 | J38: 26718.06654 | K38: 0.1016669199 | L38: 15 | M38: 57.01709962 | N38: =N37 -> 95 | O38: 95 | P38: 249660 | Q38: 142348.8909 | R38: 6438.666545 | S38: 2003.854991 | T38: 4007.709982 | U38: 18275.54501 | V38: 78584.84354 | W38: 16271.69002 | X38: =W38*2.9 -> 47187.90105 | Y38: 85 | Z38: 173745.8334 | AA38: 1.130434783 | AB38: 196408.3334 | AC38: 2 | AD38: 98204.16671 | AE38: 16.36736112 | AF38: 0.14 | AG38: 13748.58334 | AH38: 107311.1091 | AI38: 74007.66144 | AJ38: 60 | AK38: 123346.1024 | AL38: 337.9345271 | AM38: 0 | AN38: 0 | AO38: =AO37 -> – | AP38: 74007.66144 | AQ38: 123346.1024 | AR38: 20 | AS38: 43800 | AT38: 30207.66144 | AU38: 43801.10908 | AV38: 40.81693821 | AW38: =AQ38-AT38 -> 93138.44096 | AX38: 26 | AY38: 358.2247729 | AZ38: 60 | BA38: 21493.48637 | BK38: =BK37 -> NEIN | BL38: 43801.10908 | BM38: =BM37 -> 0.35 | BN38: =BL38*BM38 -> 15330.38818 | BO38: =BO37 -> 10 | BP38: =BP37 -> 0 | BQ38: =BO38*BP38/100 -> 0 | BR38: 0 | BS38: =BS37 -> 0 | BT38: =BR38*BS38 -> 0
B39: 8000 | C39: 350400 | D39: 32120 | E39: 3504.088727 | F39: 10.90936714 | G39: NEIN | H39: 0 | I39: 350400 | J39: 35624.08873 | K39: 0.1016669199 | L39: 15 | M39: 57.01709962 | N39: 95 | O39: 95 | P39: 332880 | Q39: 189798.5212 | R39: 8584.888727 | S39: 2671.806654 | T39: 5343.613309 | U39: 24367.39335 | V39: 104779.7914 | W39: 21695.58669 | X39: =W39*2.9 -> 62917.2014 | Y39: 85 | Z39: 231661.1112 | AA39: 1.130434783 | AB39: 261877.7779 | AC39: 2 | AD39: 130938.8889 | AE39: 16.36736112 | AF39: 0.14 | AG39: 18331.44445 | AH39: 143081.4788 | AI39: 98676.88192 | AJ39: 60 | AK39: 164461.4699 | AL39: 450.5793695 | AM39: 0 | AN39: 0 | AO39: – | AP39: 98676.88192 | AQ39: 164461.4699 | AR39: 20 | AS39: 58400 | AT39: 40276.88192 | AU39: 58401.47878 | AV39: 40.81693821 | AW39: 124184.5879 | AX39: 26 | AY39: 477.6330306 | AZ39: 60 | BA39: 28657.98183 | BK39: NEIN | BL39: 58401.47878 | BM39: 0.35 | BN39: 20440.51757 | BO39: 10 | BP39: 0 | BQ39: 0 | BR39: 0 | BS39: 0 | BT39: 0
B40: 10000 | C40: 438000 | D40: 40150 | E40: 4380.110908 | F40: 10.90936714 | G40: NEIN | H40: 0 | I40: 438000 | J40: 44530.11091 | K40: 0.1016669199 | L40: 15 | M40: 57.01709962 | N40: 95 | O40: 95 | P40: 416100 | Q40: 237248.1515 | R40: 10731.11091 | S40: 3339.758318 | T40: 6679.516636 | U40: 30459.24168 | V40: 130974.7392 | W40: 27119.48336 | X40: 78646.50175 | Y40: 85 | Z40: 289576.389 | AA40: 1.130434783 | AB40: 327347.2224 | AC40: 2 | AD40: 163673.6112 | AE40: 16.36736112 | AF40: 0.14 | AG40: 22914.30556 | AH40: 178851.8485 | AI40: 123346.1024 | AJ40: 60 | AK40: 205576.8373 | AL40: 563.2242118 | AM40: 0 | AN40: 0 | AO40: – | AP40: 123346.1024 | AQ40: 205576.8373 | AR40: 20 | AS40: 73000 | AT40: 50346.10239 | AU40: 73001.84847 | AV40: 40.81693821 | AW40: 155230.7349 | AX40: 26 | AY40: 597.0412882 | AZ40: 60 | BA40: 35822.47729 | BK40: NEIN | BL40: 73001.84847 | BM40: 0.35 | BN40: =BL40*BM40 -> 25550.64697 | BO40: =BO39 -> 10 | BP40: =BP39 -> 0 | BQ40: =BO40*BP40/100 -> 0 | BR40: 0 | BS40: =BS39 -> 0 | BT40: =BR40*BS40 -> 0
B41: 12000 | C41: 525600 | D41: 48180 | E41: 5256.13309 | F41: 10.90936714 | G41: NEIN | H41: 0 | I41: 525600 | J41: 53436.13309 | K41: 0.1016669199 | L41: 15 | M41: 57.01709962 | N41: 95 | O41: 95 | P41: 499320 | Q41: 284697.7818 | R41: 12877.33309 | S41: 4007.709982 | T41: 8015.419963 | U41: 36551.09002 | V41: 157169.6871 | W41: 32543.38004 | X41: 94375.80211 | Y41: 85 | Z41: 347491.6668 | AA41: 1.130434783 | AB41: 392816.6668 | AC41: 2 | AD41: 196408.3334 | AE41: 16.36736112 | AF41: 0.14 | AG41: 27497.16668 | AH41: 214622.2182 | AI41: 148015.3229 | AJ41: 60 | AK41: 246692.2048 | AL41: 675.8690542 | AM41: 0 | AN41: 0 | AO41: – | AP41: 148015.3229 | AQ41: 246692.2048 | AR41: 20 | AS41: 87600 | AT41: 60415.32287 | AU41: 87602.21817 | AV41: 40.81693821 | AW41: 186276.8819 | AX41: 26 | AY41: 716.4495458 | AZ41: 60 | BA41: 42986.97275 | BK41: NEIN | BL41: 87602.21817 | BM41: 0.35 | BN41: 30660.77636 | BO41: 10 | BP41: 0 | BQ41: 0 | BR41: 0 | BS41: 0 | BT41: 0
B42: 14000 | C42: 613200 | D42: 56210 | E42: 6132.155272 | F42: 10.90936714 | G42: NEIN | H42: 0 | I42: 613200 | J42: 62342.15527 | K42: 0.1016669199 | L42: 15 | M42: 57.01709962 | N42: 95 | O42: 95 | P42: 582540 | Q42: 332147.4121 | R42: 15023.55527 | S42: 4675.661645 | T42: 9351.323291 | U42: 42642.93835 | V42: 183364.6349 | W42: 37967.27671 | X42: 110105.1025 | Y42: 85 | Z42: 405406.9446 | AA42: 1.130434783 | AB42: 458286.1113 | AC42: 2 | AD42: 229143.0556 | AE42: 16.36736112 | AF42: 0.14 | AG42: 32080.02779 | AH42: 250392.5879 | AI42: 172684.5434 | AJ42: 60 | AK42: 287807.5723 | AL42: 788.5138966 | AM42: 0 | AN42: 0 | AO42: – | AP42: 172684.5434 | AQ42: 287807.5723 | AR42: 20 | AS42: 102200 | AT42: 70484.54335 | AU42: 102202.5879 | AV42: 40.81693821 | AW42: 217323.0289 | AX42: 26 | AY42: 835.8578035 | AZ42: 60 | BA42: 50151.46821 | BK42: NEIN | BL42: 102202.5879 | BM42: 0.35 | BN42: 35770.90575 | BO42: 10 | BP42: 0 | BQ42: 0 | BR42: 0 | BS42: 0 | BT42: 0
B43: 16000 | C43: 700800 | D43: 64240 | E43: 7008.177453 | F43: 10.90936714 | G43: NEIN | H43: 0 | I43: 700800 | J43: 71248.17745 | K43: 0.1016669199 | L43: 15 | M43: 57.01709962 | N43: 95 | O43: 95 | P43: 665760 | Q43: 379597.0424 | R43: 17169.77745 | S43: 5343.613309 | T43: 10687.22662 | U43: 48734.78669 | V43: 209559.5828 | W43: 43391.17338 | X43: 125834.4028 | Y43: 85 | Z43: 463322.2224 | AA43: 1.130434783 | AB43: 523755.5558 | AC43: 2 | AD43: 261877.7779 | AE43: 16.36736112 | AF43: 0.14 | AG43: 36662.8889 | AH43: 286162.9576 | AI43: 197353.7638 | AJ43: 60 | AK43: 328922.9397 | AL43: 901.158739 | AM43: 0 | AN43: 0 | AO43: – | AP43: 197353.7638 | AQ43: 328922.9397 | AR43: 20 | AS43: 116800 | AT43: 80553.76383 | AU43: 116802.9576 | AV43: 40.81693821 | AW43: 248369.1759 | AX43: 26 | AY43: 955.2660611 | AZ43: 60 | BA43: 57315.96367 | BK43: NEIN | BL43: 116802.9576 | BM43: 0.35 | BN43: 40881.03514 | BO43: 10 | BP43: 0 | BQ43: 0 | BR43: 0 | BS43: 0 | BT43: 0
B44: 18000 | C44: 788400 | D44: 72270 | E44: 7884.199635 | F44: 10.90936714 | G44: NEIN | H44: 0 | I44: 788400 | J44: 80154.19963 | K44: 0.1016669199 | L44: 15 | M44: 57.01709962 | N44: 95 | O44: 95 | P44: 748980 | Q44: 427046.6728 | R44: 19315.99963 | S44: 6011.564973 | T44: 12023.12995 | U44: 54826.63503 | V44: 235754.5306 | W44: 48815.07005 | X44: 141563.7032 | Y44: 85 | Z44: 521237.5002 | AA44: 1.130434783 | AB44: 589225.0002 | AC44: 2 | AD44: 294612.5001 | AE44: 16.36736112 | AF44: 0.14 | AG44: 41245.75002 | AH44: 321933.3272 | AI44: 222022.9843 | AJ44: 60 | AK44: 370038.3072 | AL44: 1013.803581 | AM44: 0 | AN44: 0 | AO44: – | AP44: 222022.9843 | AQ44: 370038.3072 | AR44: 20 | AS44: 131400 | AT44: 90622.98431 | AU44: 131403.3272 | AV44: 40.81693821 | AW44: 279415.3229 | AX44: 26 | AY44: 1074.674319 | AZ44: 60 | BA44: 64480.45912 | BK44: NEIN | BL44: 131403.3272 | BM44: 0.35 | BN44: 45991.16454 | BO44: 10 | BP44: 0 | BQ44: 0 | BR44: 0 | BS44: 0 | BT44: 0
B45: 20000 | C45: 876000 | D45: 80300 | E45: 8760.221817 | F45: 10.90936714 | G45: NEIN | H45: 0 | I45: 876000 | J45: 89060.22182 | K45: 0.1016669199 | L45: 15 | M45: 57.01709962 | N45: 95 | O45: 95 | P45: 832200 | Q45: 474496.3031 | R45: 21462.22182 | S45: 6679.516636 | T45: 13359.03327 | U45: 60918.48336 | V45: 261949.4785 | W45: 54238.96673 | X45: 157293.0035 | Y45: 85 | Z45: 579152.778 | AA45: 1.130434783 | AB45: 654694.4447 | AC45: 2 | AD45: 327347.2224 | AE45: 16.36736112 | AF45: 0.14 | AG45: 45828.61113 | AH45: 357703.6969 | AI45: 246692.2048 | AJ45: 60 | AK45: 411153.6746 | AL45: 1126.448424 | AM45: 0 | AN45: 0 | AO45: – | AP45: 246692.2048 | AQ45: 411153.6746 | AR45: 20 | AS45: 146000 | AT45: 100692.2048 | AU45: 146003.6969 | AV45: 40.81693821 | AW45: 310461.4699 | AX45: 26 | AY45: 1194.082576 | AZ45: 60 | BA45: 71644.95458 | BK45: NEIN | BL45: 146003.6969 | BM45: 0.35 | BN45: 51101.29393 | BO45: 10 | BP45: 0 | BQ45: 0 | BR45: 0 | BS45: 0 | BT45: 0
B46: 22000 | C46: 963600 | D46: 88330 | E46: 9636.243998 | F46: 10.90936714 | G46: NEIN | H46: 0 | I46: 963600 | J46: 97966.244 | K46: 0.1016669199 | L46: 15 | M46: 57.01709962 | N46: 95 | O46: 95 | P46: 915420 | Q46: 521945.9334 | R46: 23608.444 | S46: 7347.4683 | T46: 14694.9366 | U46: 67010.3317 | V46: 288144.4263 | W46: 59662.8634 | X46: 173022.3039 | Y46: 85 | Z46: 637068.0558 | AA46: 1.130434783 | AB46: 720163.8892 | AC46: 2 | AD46: 360081.9446 | AE46: 16.36736112 | AF46: 0.14 | AG46: 50411.47224 | AH46: 393474.0666 | AI46: 271361.4253 | AJ46: 60 | AK46: 452269.0421 | AL46: 1239.093266 | AM46: 0 | AN46: 0 | AO46: – | AP46: 271361.4253 | AQ46: 452269.0421 | AR46: 20 | AS46: 160600 | AT46: 110761.4253 | AU46: 160604.0666 | AV46: 40.81693821 | AW46: 341507.6168 | AX46: 26 | AY46: 1313.490834 | AZ46: 60 | BA46: 78809.45004 | BK46: NEIN | BL46: 160604.0666 | BM46: 0.35 | BN46: 56211.42332 | BO46: 10 | BP46: 0 | BQ46: 0 | BR46: 0 | BS46: 0 | BT46: 0
B47: 24000 | C47: 1051200 | D47: 96360 | E47: 10512.26618 | F47: 10.90936714 | G47: NEIN | H47: 0 | I47: 1051200 | J47: 106872.2662 | K47: 0.1016669199 | L47: 15 | M47: 57.01709962 | N47: 95 | O47: 95 | P47: 998640 | Q47: 569395.5637 | R47: 25754.66618 | S47: 8015.419963 | T47: 16030.83993 | U47: 73102.18004 | V47: 314339.3742 | W47: 65086.76007 | X47: 188751.6042 | Y47: 85 | Z47: 694983.3336 | AA47: 1.130434783 | AB47: 785633.3336 | AC47: 2 | AD47: 392816.6668 | AE47: 16.36736112 | AF47: 0.14 | AG47: 54994.33336 | AH47: 429244.4363 | AI47: 296030.6457 | AJ47: 60 | AK47: 493384.4096 | AL47: 1351.738108 | AM47: 0 | AN47: 0 | AO47: – | AP47: 296030.6457 | AQ47: 493384.4096 | AR47: 20 | AS47: 175200 | AT47: 120830.6457 | AU47: 175204.4363 | AV47: 40.81693821 | AW47: 372553.7638 | AX47: 26 | AY47: 1432.899092 | AZ47: 60 | BA47: 85973.9455 | BK47: NEIN | BL47: 175204.4363 | BM47: 0.35 | BN47: 61321.55272 | BO47: 10 | BP47: 0 | BQ47: 0 | BR47: 0 | BS47: 0 | BT47: 0
B48: 26000 | C48: 1138800 | D48: 104390 | E48: 11388.28836 | F48: 10.90936714 | G48: NEIN | H48: 0 | I48: 1138800 | J48: 115778.2884 | K48: 0.1016669199 | L48: 15 | M48: 57.01709962 | N48: 95 | O48: 95 | P48: 1081860 | Q48: 616845.194 | R48: 27900.88836 | S48: 8683.371627 | T48: 17366.74325 | U48: 79194.02837 | V48: 340534.322 | W48: 70510.65675 | X48: 204480.9046 | Y48: 85 | Z48: 752898.6114 | AA48: 1.130434783 | AB48: 851102.7781 | AC48: 2 | AD48: 425551.3891 | AE48: 16.36736112 | AF48: 0.14 | AG48: 59577.19447 | AH48: 465014.806 | AI48: 320699.8662 | AJ48: 60 | AK48: 534499.777 | AL48: 1464.382951 | AM48: 0 | AN48: 0 | AO48: – | AP48: 320699.8662 | AQ48: 534499.777 | AR48: 20 | AS48: 189800 | AT48: 130899.8662 | AU48: 189804.806 | AV48: 40.81693821 | AW48: 403599.9108 | AX48: 26 | AY48: 1552.307349 | AZ48: 60 | BA48: 93138.44096 | BK48: NEIN | BL48: 189804.806 | BM48: 0.35 | BN48: 66431.68211 | BO48: 10 | BP48: 0 | BQ48: 0 | BR48: 0 | BS48: 0 | BT48: 0
B49: 28000 | C49: 1226400 | D49: 112420 | E49: 12264.31054 | F49: 10.90936714 | G49: NEIN | H49: 0 | I49: 1226400 | J49: 124684.3105 | K49: 0.1016669199 | L49: 15 | M49: 57.01709962 | N49: 95 | O49: 95 | P49: 1165080 | Q49: 664294.8243 | R49: 30047.11054 | S49: 9351.323291 | T49: 18702.64658 | U49: 85285.87671 | V49: 366729.2698 | W49: 75934.55342 | X49: 220210.2049 | Y49: 85 | Z49: 810813.8892 | AA49: 1.130434783 | AB49: 916572.2226 | AC49: 2 | AD49: 458286.1113 | AE49: 16.36736112 | AF49: 0.14 | AG49: 64160.05558 | AH49: 500785.1757 | AI49: 345369.0867 | AJ49: 60 | AK49: 575615.1445 | AL49: 1577.027793 | AM49: 0 | AN49: 0 | AO49: – | AP49: 345369.0867 | AQ49: 575615.1445 | AR49: 20 | AS49: 204400 | AT49: 140969.0867 | AU49: 204405.1757 | AV49: 40.81693821 | AW49: 434646.0578 | AX49: 26 | AY49: 1671.715607 | AZ49: 60 | BA49: 100302.9364 | BK49: NEIN | BL49: 204405.1757 | BM49: 0.35 | BN49: 71541.8115 | BO49: 10 | BP49: 0 | BQ49: 0 | BR49: 0 | BS49: 0 | BT49: 0
B50: 30000 | C50: 1314000 | D50: 120450 | E50: 13140.33272 | F50: 10.90936714 | G50: NEIN | H50: 0 | I50: 1314000 | J50: 133590.3327 | K50: 0.1016669199 | L50: 15 | M50: 57.01709962 | N50: 95 | O50: 95 | P50: 1248300 | Q50: 711744.4546 | R50: 32193.33272 | S50: 10019.27495 | T50: 20038.54991 | U50: 91377.72505 | V50: 392924.2177 | W50: 81358.45009 | X50: 235939.5053 | Y50: 85 | Z50: 868729.167 | AA50: 1.130434783 | AB50: 982041.6671 | AC50: 2 | AD50: 491020.8335 | AE50: 16.36736112 | AF50: 0.14 | AG50: 68742.91669 | AH50: 536555.5454 | AI50: 370038.3072 | AJ50: 60 | AK50: 616730.512 | AL50: 1689.672636 | AM50: 0 | AN50: 0 | AO50: – | AP50: 370038.3072 | AQ50: 616730.512 | AR50: 20 | AS50: 219000 | AT50: 151038.3072 | AU50: 219005.5454 | AV50: 40.81693821 | AW50: 465692.2048 | AX50: 26 | AY50: 1791.123865 | AZ50: 60 | BA50: 107467.4319 | BK50: NEIN | BL50: 219005.5454 | BM50: 0.35 | BN50: 76651.9409 | BO50: 10 | BP50: 0 | BQ50: 0 | BR50: 0 | BS50: 0 | BT50: 0
B51: 32000 | C51: 1401600 | D51: 128480 | E51: 14016.35491 | F51: 10.90936714 | G51: NEIN | H51: 0 | I51: 1401600 | J51: 142496.3549 | K51: 0.1016669199 | L51: 15 | M51: 57.01709962 | N51: 95 | O51: 95 | P51: 1331520 | Q51: 759194.0849 | R51: 34339.55491 | S51: 10687.22662 | T51: 21374.45324 | U51: 97469.57338 | V51: 419119.1655 | W51: 86782.34676 | X51: 251668.8056 | Y51: 85 | Z51: 926644.4448 | AA51: 1.130434783 | AB51: 1047511.112 | AC51: 2 | AD51: 523755.5558 | AE51: 16.36736112 | AF51: 0.14 | AG51: 73325.77781 | AH51: 572325.9151 | AI51: 394707.5277 | AJ51: 60 | AK51: 657845.8794 | AL51: 1802.317478 | AM51: 0 | AN51: 0 | AO51: – | AP51: 394707.5277 | AQ51: 657845.8794 | AR51: 20 | AS51: 233600 | AT51: 161107.5277 | AU51: 233605.9151 | AV51: 40.81693821 | AW51: 496738.3518 | AX51: 26 | AY51: 1910.532122 | AZ51: 60 | BA51: 114631.9273 | BK51: NEIN | BL51: 233605.9151 | BM51: 0.35 | BN51: 81762.07029 | BO51: 10 | BP51: 0 | BQ51: 0 | BR51: 0 | BS51: 0 | BT51: 0
B52: 34000 | C52: 1489200 | D52: 136510 | E52: 14892.37709 | F52: 10.90936714 | G52: NEIN | H52: 0 | I52: 1489200 | J52: 151402.3771 | K52: 0.1016669199 | L52: 15 | M52: 57.01709962 | N52: 95 | O52: 95 | P52: 1414740 | Q52: 806643.7152 | R52: 36485.77709 | S52: 11355.17828 | T52: 22710.35656 | U52: 103561.4217 | V52: 445314.1134 | W52: 92206.24344 | X52: 267398.106 | Y52: 85 | Z52: 984559.7226 | AA52: 1.130434783 | AB52: 1112980.556 | AC52: 2 | AD52: 556490.278 | AE52: 16.36736112 | AF52: 0.14 | AG52: 77908.63892 | AH52: 608096.2848 | AI52: 419376.7481 | AJ52: 60 | AK52: 698961.2469 | AL52: 1914.96232 | AM52: 0 | AN52: 0 | AO52: – | AP52: 419376.7481 | AQ52: 698961.2469 | AR52: 20 | AS52: 248200 | AT52: 171176.7481 | AU52: 248206.2848 | AV52: 40.81693821 | AW52: 527784.4988 | AX52: 26 | AY52: 2029.94038 | AZ52: 60 | BA52: 121796.4228 | BK52: NEIN | BL52: 248206.2848 | BM52: 0.35 | BN52: 86872.19968 | BO52: 10 | BP52: 0 | BQ52: 0 | BR52: 0 | BS52: 0 | BT52: 0
B53: 36000 | C53: 1576800 | D53: 144540 | E53: 15768.39927 | F53: 10.90936714 | G53: NEIN | H53: 0 | I53: 1576800 | J53: 160308.3993 | K53: 0.1016669199 | L53: 15 | M53: 57.01709962 | N53: 95 | O53: 95 | P53: 1497960 | Q53: 854093.3455 | R53: 38631.99927 | S53: 12023.12995 | T53: 24046.25989 | U53: 109653.2701 | V53: 471509.0612 | W53: 97630.14011 | X53: 283127.4063 | Y53: 85 | Z53: 1042475 | AA53: 1.130434783 | AB53: 1178450 | AC53: 2 | AD53: 589225.0002 | AE53: 16.36736112 | AF53: 0.14 | AG53: 82491.50003 | AH53: 643866.6545 | AI53: 444045.9686 | AJ53: 60 | AK53: 740076.6144 | AL53: 2027.607163 | AM53: 0 | AN53: 0 | AO53: – | AP53: 444045.9686 | AQ53: 740076.6144 | AR53: 20 | AS53: 262800 | AT53: 181245.9686 | AU53: 262806.6545 | AV53: 40.81693821 | AW53: 558830.6457 | AX53: 26 | AY53: 2149.348637 | AZ53: 60 | BA53: 128960.9182 | BK53: NEIN | BL53: 262806.6545 | BM53: 0.35 | BN53: 91982.32907 | BO53: 10 | BP53: 0 | BQ53: 0 | BR53: 0 | BS53: 0 | BT53: 0
B54: 38000 | C54: 1664400 | D54: 152570 | E54: 16644.42145 | F54: 10.90936714 | G54: NEIN | H54: 0 | I54: 1664400 | J54: 169214.4215 | K54: 0.1016669199 | L54: 15 | M54: 57.01709962 | N54: 95 | O54: 95 | P54: 1581180 | Q54: 901542.9758 | R54: 40778.22145 | S54: 12691.08161 | T54: 25382.16322 | U54: 115745.1184 | V54: 497704.0091 | W54: 103054.0368 | X54: 298856.7067 | Y54: 85 | Z54: 1100390.278 | AA54: 1.130434783 | AB54: 1243919.445 | AC54: 2 | AD54: 621959.7225 | AE54: 16.36736112 | AF54: 0.14 | AG54: 87074.36115 | AH54: 679637.0242 | AI54: 468715.1891 | AJ54: 60 | AK54: 781191.9818 | AL54: 2140.252005 | AM54: 0 | AN54: 0 | AO54: – | AP54: 468715.1891 | AQ54: 781191.9818 | AR54: 20 | AS54: 277400 | AT54: 191315.1891 | AU54: 277407.0242 | AV54: 40.81693821 | AW54: 589876.7927 | AX54: 26 | AY54: 2268.756895 | AZ54: 60 | BA54: 136125.4137 | BK54: NEIN | BL54: 277407.0242 | BM54: 0.35 | BN54: 97092.45847 | BO54: 10 | BP54: 0 | BQ54: 0 | BR54: 0 | BS54: 0 | BT54: 0
B55: 40000 | C55: 1752000 | D55: 160600 | E55: 17520.44363 | F55: 10.90936714 | G55: NEIN | H55: 0 | I55: 1752000 | J55: 178120.4436 | K55: 0.1016669199 | L55: 15 | M55: 57.01709962 | N55: 95 | O55: 95 | P55: 1664400 | Q55: 948992.6061 | R55: 42924.44363 | S55: 13359.03327 | T55: 26718.06654 | U55: 121836.9667 | V55: 523898.9569 | W55: 108477.9335 | X55: 314586.007 | Y55: 85 | Z55: 1158305.556 | AA55: 1.130434783 | AB55: 1309388.889 | AC55: 2 | AD55: 654694.4447 | AE55: 16.36736112 | AF55: 0.14 | AG55: 91657.22226 | AH55: 715407.3939 | AI55: 493384.4096 | AJ55: 60 | AK55: 822307.3493 | AL55: 2252.896847 | AM55: 0 | AN55: 0 | AO55: – | AP55: 493384.4096 | AQ55: 822307.3493 | AR55: 20 | AS55: 292000 | AT55: 201384.4096 | AU55: 292007.3939 | AV55: 40.81693821 | AW55: 620922.9397 | AX55: 26 | AY55: 2388.165153 | AZ55: 60 | BA55: 143289.9092 | BK55: NEIN | BL55: 292007.3939 | BM55: 0.35 | BN55: 102202.5879 | BO55: 10 | BP55: 0 | BQ55: 0 | BR55: 0 | BS55: 0 | BT55: 0
A56: Mittlere Belastung Kläranlage | B56: ='Dateneingabe und Ergebnisse'!I5 -> 15000 | C56: 657000 | D56: 60225 | E56: 6570.166362 | F56: 10.90936714 | G56: NEIN | H56: 0 | I56: 657000 | J56: 66795.16636 | K56: 0.1016669199 | L56: 15 | M56: 57.01709962 | N56: 95 | O56: 95 | P56: 624150 | Q56: 355872.2273 | R56: 16096.66636 | S56: 5009.637477 | T56: 10019.27495 | U56: 45688.86252 | V56: 196462.1088 | W56: 40679.22505 | X56: 117969.7526 | Y56: 85 | Z56: 434364.5835 | AA56: 1.130434783 | AB56: 491020.8335 | AC56: 2 | AD56: 245510.4168 | AE56: 16.36736112 | AF56: 0.14 | AG56: 34371.45835 | AH56: 268277.7727 | AI56: 185019.1536 | AJ56: 60 | AK56: 308365.256 | AL56: 844.8363178 | AM56: 0 | AN56: 0 | AO56: =AO55 -> – | AP56: 185019.1536 | AQ56: 308365.256 | AR56: 20 | AS56: 109500 | AT56: 75519.15359 | AU56: 109502.7727 | AV56: 40.81693821 | AW56: 232846.1024 | AX56: 26 | AY56: 895.5619323 | AZ56: 60 | BA56: 53733.71594 | BK56: =BK55 -> NEIN | BL56: 109502.7727 | BM56: =BM55 -> 0.35 | BN56: =BL56*BM56 -> 38325.97045 | BO56: =BO55 -> 10 | BP56: =BP55 -> 0 | BQ56: =BO56*BP56/100 -> 0 | BR56: 0 | BS56: =BS55 -> 0 | BT56: =BR56*BS56 -> 0
A57: Mittlere Belastung bei Ausnützung Überkapazität | B57: =B59*(B56/B58) -> 22324.19904 | C57: 977799.9181 | D57: 89631.65916 | E57: 9778.246775 | F57: =E57/D57*100 -> 10.90936714 | G57: NEIN | H57: 0 | I57: =IF(G57="NEIN",C57,C57*(1-H57/100)) -> 977799.9181 | J57: =B57*0.011*365+E57 -> 99409.90594 | K57: =J57/I57 -> 0.1016669199 | L57: 15 | M57: =IF(G57="NEIN",9.4345*LN(L57)+32.468-1,8.8152*LN(L57)+39.505-1) -> 57.01709962 | N57: 95 | O57: =(N57-H57)/(100-H57)*100 -> 95 | P57: =I57*O57/100 -> 928909.9222 | Q57: =P57*M57/100 -> 529637.4958 | R57: =AH57*$R$2 -> 23956.34559 | S57: =J57*$S$2 -> 7455.742945 | T57: =J57*$T$2 -> 14911.48589 | U57: =J57-R57-T57+S57 -> 67997.8174 | V57: =U57*4.3 -> 292390.6148 | W57: =J57-R57-T57 -> 60542.07446 | X57: =W57*2.9 -> 175572.0159 | Y57: =100-T57/J57*100 -> 85 | Z57: =Q57+V57-X57 -> 646456.0947 | AA57: 1.130434783 | AB57: =Z57*AA57 -> 730776.4548 | AC57: 2 | AD57: =AB57/AC57 -> 365388.2274 | AE57: =AD57/B57 -> 16.36736112 | AF57: 0.14 | AG57: =AD57*AF57 -> 51154.35184 | AH57: =P57*((100-M57)/100) -> 399272.4265 | AI57: =AH57/$AI$2 -> 275360.2941 | AJ57: 60 | AK57: 458933.8235 | AL57: =AK57/365 -> 1257.352941 | AM57: =C57-I57 -> 0 | AN57: =AM57/$AI$2 -> 0 | AO57: =AO55 -> – | AP57: 275360.2941 | AQ57: 458933.8235 | AR57: 20 | AS57: 162966.653 | AT57: 112393.6411 | AU57: 162970.7796 | AV57: 40.81693821 | AW57: 346540.1824 | AX57: 26 | AY57: 1332.846856 | AZ57: 60 | BA57: =AY57*AZ57 -> 79970.81133
A58: Bemessung Anaerobie | B58: ='Dateneingabe und Ergebnisse'!I7 -> 17000 | C58: =B58*0.12*365 -> 744600 | D58: =B58*0.011*365 -> 68255 | E58: 7446.188544 | F58: 10.90936714 | G58: =G56 -> NEIN | H58: =H56 -> 0 | I58: 744600 | J58: 75701.18854 | K58: =J58/I58 -> 0.1016669199 | L58: =L56 -> 15 | M58: =IF(G58="NEIN",9.4345*LN(L58)+32.468-1,8.8152*LN(L58)+39.505-1) -> 57.01709962 | N58: =N56 -> 95 | O58: 95 | P58: 707370 | Q58: =P58*M58/100 -> 403321.8576 | R58: =AH58*$R$2 -> 18242.88854 | S58: =J58*$S$2 -> 5677.589141 | T58: =J58*$T$2 -> 11355.17828 | U58: =J58-R58-T58+S58 -> 51780.71086 | V58: =U58*4.3 -> 222657.0567 | W58: =J58-R58-T58 -> 46103.12172 | X58: =W58*2.9 -> 133699.053 | Y58: =100-T58/J58*100 -> 85 | Z58: =Q58+V58-X58 -> 492279.8613 | AA58: =AA56 -> 1.130434783 | AB58: =Z58*AA58 -> 556490.278 | AC58: =AC56 -> 2 | AD58: =AB58/AC58 -> 278245.139 | AE58: 16.36736112 | AF58: =AF56 -> 0.14 | AG58: =AD58*AF58 -> 38954.31946 | AH58: =P58*((100-M58)/100) -> 304048.1424 | AI58: 209688.3741 | AJ58: =AJ56 -> 60 | AK58: 349480.6235 | AL58: 957.4811601 | AM58: =C58-I58 -> 0 | AN58: 0 | AO58: =AO57 -> – | AP58: 209688.3741 | AQ58: 349480.6235 | AR58: =AR56 -> 20 | AS58: 124100 | AT58: 85588.37407 | AU58: 124103.1424 | AV58: 40.81693821 | AW58: 263892.2494 | AX58: =AX56 -> 26 | AY58: 1014.97019 | AZ58: =AZ56 -> 60 | BA58: =AY58*AZ58 -> 60898.2114 | BC58: =AQ58 -> 349480.6235 | BD58: =BC58/365 -> 957.4811601 | BE58: ='Dateneingabe und Ergebnisse'!I19 -> 3 | BF58: =BD58/(BE58/100)/1000 -> 31.91603867 | BG58: ='Dateneingabe und Ergebnisse'!I20 -> 30 | BH58: =BF58*BG58 -> 957.4811601
A59: Bemessung Anaerobie_NEU | B59: =B58+B62*(B58/B60) -> 25300.75892 | C59: =B59*0.12*365 -> 1108173.241 | D59: =B59*0.011*365 -> 101582.5471 | E59: 11082.01301 | F59: =E59/D59*100 -> 10.90936714 | G59: NEIN | H59: 0 | I59: =IF(G59="NEIN",C59,C59*(1-H59/100)) -> 1108173.241 | J59: =B59*0.011*365+E59 -> 112664.5601 | K59: =J59/I59 -> 0.1016669199 | L59: 15 | M59: =IF(G59="NEIN",9.4345*LN(L59)+32.468-1,8.8152*LN(L59)+39.505-1) -> 57.01709962 | N59: 95 | O59: =(N59-H59)/(100-H59)*100 -> 95 | P59: =I59*O59/100 -> 1052764.579 | Q59: =P59*M59/100 -> 600255.8285 | R59: =AH59*$R$2 -> 27150.525 | S59: =J59*$S$2 -> 8449.842005 | T59: =J59*$T$2 -> 16899.68401 | U59: =J59-R59-T59+S59 -> 77064.19306 | V59: =U59*4.3 -> 331376.0301 | W59: =J59-R59-T59 -> 68614.35105 | X59: =W59*2.9 -> 198981.6181 | Y59: =100-T59/J59*100 -> 85 | Z59: =Q59+V59-X59 -> 732650.2406 | AA59: 1.130434783 | AB59: =Z59*AA59 -> 828213.3155 | AC59: 2 | AD59: =AB59/AC59 -> 414106.6577 | AE59: =AD59/B59 -> 16.36736112 | AF59: 0.14 | AG59: =AD59*AF59 -> 57974.93208 | AH59: =P59*((100-M59)/100) -> 452508.75 | AI59: =AH59/$AI$2 -> 312075 | AJ59: 60 | AK59: 520125 | AL59: =AK59/365 -> 1425 | AM59: =C59-I59 -> 0 | AN59: =AM59/$AI$2 -> 0 | AO59: =AO58 -> – | AP59: 312075 | AQ59: 520125 | AR59: 20 | AS59: 184695.5401 | AT59: 127379.4599 | AU59: 184700.2169 | AV59: 40.81693821 | AW59: 392745.5401 | AX59: 26 | AY59: 1510.55977 | AZ59: 60 | BA59: =AY59*AZ59 -> 90633.58618 | BC59: =AQ59 -> 520125 | BD59: =BC59/365 -> 1425 | BE59: =BE58 -> 3 | BF59: =BD59/(BE59/100)/1000 -> 47.5 | BG59: =BG58 -> 30 | BH59: =BF59*BG59 -> 1425
A60: Bemessung Aerobie | B60: ='Dateneingabe und Ergebnisse'!I6 -> 20000 | C60: =B60*0.12*365 -> 876000 | D60: =B60*0.011*365 -> 80300 | E60: =E58 -> 7446.188544 | F60: =F58 -> 10.90936714 | G60: =G58 -> NEIN | H60: =H58 -> 0 | I60: 876000 | J60: 87746.18854 | K60: =J60/I60 -> 0.1001668819 | L60: =L58 -> 15 | M60: =IF(G60="NEIN",9.4345*LN(L60)+32.468-1,8.8152*LN(L60)+39.505-1) -> 57.01709962 | N60: 85 | O60: 85 | P60: 744600 | Q60: =P60*M60/100 -> 424549.3238 | R60: =AH60*$R$2 -> 19203.04057 | S60: =J60*$S$2 -> 6580.964141 | T60: =J60*$T$64 -> 26323.85656 | U60: =J60-R60-T60+S60 -> 48800.25555 | V60: =U60*4.3 -> 209841.0989 | W60: =J60-R60-T60 -> 42219.29141 | X60: =W60*2.9 -> 122435.9451 | Y60: =100-T60/J60*100 -> 70 | Z60: =Q60+V60-X60 -> 511954.4776 | AA60: =($AA$1/($AA$1-$AA$2)) -> 1.130434783 | AB60: =Z60*AA60 -> 578731.1486 | AH60: =P60*((100-M60)/100) -> 320050.6762 | AI60: 220724.6043 | AJ60: =AJ58 -> 60 | AK60: 367874.3405 | AL60: 1007.874905 | AM60: =C60-I60 -> 0 | AN60: 0 | AO60: =AO59 -> – | AP60: 220724.6043 | AQ60: 367874.3405 | AR60: =AR58 -> 20 | AS60: =AS58 -> 124100 | AT60: =AT58 -> 85588.37407 | AU60: 124103.1424 | AV60: =AV58 -> 40.81693821 | AW60: 282285.9664 | AX60: =AX58 -> 26 | AY60: 1085.715255 | AZ60: =AZ58 -> 60 | BA60: =AY60*AZ60 -> 65142.91532
A61: Kontrolle Rückrechnung | B61: 114.6838309 | C61: =B61*0.12*365 -> 5023.151792 | G61: NEIN | H61: 0 | I61: =IF(G61="NEIN",C61,C61*(1-H61/100)) -> 5023.151792 | J61: =B61*0.011*365+E61 -> 460.455581 | K61: =J61/I61 -> 0.09166666667 | L61: 15 | M61: =IF(G61="NEIN",9.4345*LN(L61)+32.468-1,8.8152*LN(L61)+39.505-1) -> 57.01709962 | N61: 85 | O61: =(N61-H61)/(100-H61)*100 -> 85 | P61: =I61*O61/100 -> 4269.679023 | Q61: =P61*M61/100 -> 2434.447142 | AH61: =P61*((100-M61)/100) -> 1835.231881 | AI61: =AH61/$AI$2 -> 1265.677159 | AJ61: 60 | AK61: 2109.461932 | AL61: =AK61/365 -> 5.77934776
A62: Überkapazität Aerobie (Rückrechnung) | B62: =C62/0.12/365 -> 9765.598726 | C62: =I62/(1-H61/100) -> 427733.2242 | I62: =P62/O62*100 -> 427733.2242 | M62: =M60 -> 57.01709962 | O62: =O60 -> 85 | P62: =AH62+Q62 -> 363573.2406 | Q62: =AH62/(100-M62)*M62 -> 207298.9168 | AH62: =AI62*AI2 -> 156274.3238 | AI62: =AK62*AJ62/100 -> 107775.3957 | AJ62: =AJ60 -> 60 | AK62: =AL62*365 -> 179625.6595 | AL62: ='Dateneingabe und Ergebnisse'!I37*'Dateneingabe und Ergebnisse'!I13/'Dateneingabe und Ergebnisse'!I12 -> 492.1250946
N63: =Q41+AH41+AM41 -> 499320 | T63: Nges_ab/Nges_zu-1.AEVkA
B64: Fall | C64: 35000 | D64: 30000 | E64: 25000 | M64: Kontrolle CSB-Wirkungsgrad mit VK | N64: =N63/C41*100 -> 95 | T64: 0.3 | AO64: –
B65: =B62 -> 9765.598726 | C65: 25427.25222 | D65: 21790.3779 | E65: 18159.67718
B66: =B58/B60 -> 0.85 | C66: 0.6857142857 | D66: 0.8 | E66: 0.96
B67: =B65*B66 -> 8300.758917 | C67: 17435.83009 | D67: 17432.30232 | E67: 17433.29009

Sheet Betriebskostenersparnis (hidden)
B1: Reduktion (+) / Erhöhung (-) laufender Kosten
B2: Einwohnerwerte | C2: Belüftungskostenersparnis | D2: Schlammentsorgungskostenersparnis | E2: Betriebskostenersparnis | F2: jährliche Einsp. aus Eingenstromproduktion | G2: etwaige Erhöhung durch zusätzliche Personalkosten | H2: etwaige Erhöhung durch zusätliche Betriebskosten | I2: Gesamtreduktion
B3: EW | C3: Euro/Jahr | D3: Euro/Jahr | E3: Euro/Jahr | F3: Euro/Jahr | G3: Euro/Jahr | H3: Euro/Jahr | I3: Euro/Jahr
A4: Berechnung allgemeine Kurvenschaar | B4: 2000 | C4: =Bemessung!AG6-Bemessung!AG36 -> 361.9685754 | D4: =Bemessung!BA6-Bemessung!BA36 -> 2342.777341 | E4: =D4+C4 -> 2704.745916 | F4: =Bemessung!BT36 -> 0 | G4: =G24 -> 0 | H4: =$H$24*(B4/$B$24) -> 0 | I4: =(IF(E4+F4-G4-H4<0,0,E4+F4-G4-H4)) -> 2704.745916
B5: 4000 | C5: =Bemessung!AG7-Bemessung!AG37 -> 723.9371509 | D5: =Bemessung!BA7-Bemessung!BA37 -> 4685.554681 | E5: 5409.491832 | F5: =Bemessung!BT37 -> 0 | G5: =G4 -> 0 | H5: =$H$24*(B5/$B$24) -> 0 | I5: =(IF(E5+F5-G5-H5<0,0,E5+F5-G5-H5)) -> 5409.491832
B6: 6000 | C6: =Bemessung!AG8-Bemessung!AG38 -> 1085.905726 | D6: =Bemessung!BA8-Bemessung!BA38 -> 7028.332022 | E6: 8114.237748 | F6: =Bemessung!BT38 -> 0 | G6: =G5 -> 0 | H6: 0 | I6: 8114.237748
B7: 8000 | C7: =Bemessung!AG9-Bemessung!AG39 -> 1447.874302 | D7: =Bemessung!BA9-Bemessung!BA39 -> 9371.109362 | E7: 10818.98366 | F7: =Bemessung!BT39 -> 0 | G7: 0 | H7: 0 | I7: 10818.98366
B8: 10000 | C8: =Bemessung!AG10-Bemessung!AG40 -> 1809.842877 | D8: =Bemessung!BA10-Bemessung!BA40 -> 11713.8867 | E8: 13523.72958 | F8: =Bemessung!BT40 -> 0 | G8: 0 | H8: 0 | I8: 13523.72958
B9: 12000 | C9: =Bemessung!AG11-Bemessung!AG41 -> 2171.811453 | D9: =Bemessung!BA11-Bemessung!BA41 -> 14056.66404 | E9: 16228.4755 | F9: =Bemessung!BT41 -> 0 | G9: 0 | H9: 0 | I9: 16228.4755
B10: 14000 | C10: =Bemessung!AG12-Bemessung!AG42 -> 2533.780028 | D10: =Bemessung!BA12-Bemessung!BA42 -> 16399.44138 | E10: 18933.22141 | F10: =Bemessung!BT42 -> 0 | G10: 0 | H10: 0 | I10: 18933.22141
B11: 16000 | C11: =Bemessung!AG13-Bemessung!AG43 -> 2895.748604 | D11: =Bemessung!BA13-Bemessung!BA43 -> 18742.21872 | E11: 21637.96733 | F11: =Bemessung!BT43 -> 0 | G11: 0 | H11: 0 | I11: 21637.96733
B12: 18000 | C12: =Bemessung!AG14-Bemessung!AG44 -> 3257.717179 | D12: =Bemessung!BA14-Bemessung!BA44 -> 21084.99607 | E12: 24342.71324 | F12: =Bemessung!BT44 -> 0 | G12: 0 | H12: 0 | I12: 24342.71324
B13: 20000 | C13: =Bemessung!AG15-Bemessung!AG45 -> 3619.685754 | D13: =Bemessung!BA15-Bemessung!BA45 -> 23427.77341 | E13: 27047.45916 | F13: =Bemessung!BT45 -> 0 | G13: 0 | H13: 0 | I13: 27047.45916
B14: 22000 | C14: =Bemessung!AG16-Bemessung!AG46 -> 3981.65433 | D14: =Bemessung!BA16-Bemessung!BA46 -> 25770.55075 | E14: 29752.20508 | F14: =Bemessung!BT46 -> 0 | G14: 0 | H14: 0 | I14: 29752.20508
B15: 24000 | C15: =Bemessung!AG17-Bemessung!AG47 -> 4343.622905 | D15: =Bemessung!BA17-Bemessung!BA47 -> 28113.32809 | E15: 32456.95099 | F15: =Bemessung!BT47 -> 0 | G15: 0 | H15: 0 | I15: 32456.95099
B16: 26000 | C16: =Bemessung!AG18-Bemessung!AG48 -> 4705.591481 | D16: =Bemessung!BA18-Bemessung!BA48 -> 30456.10543 | E16: 35161.69691 | F16: =Bemessung!BT48 -> 0 | G16: 0 | H16: 0 | I16: 35161.69691
B17: 28000 | C17: =Bemessung!AG19-Bemessung!AG49 -> 5067.560056 | D17: =Bemessung!BA19-Bemessung!BA49 -> 32798.88277 | E17: 37866.44282 | F17: =Bemessung!BT49 -> 0 | G17: 0 | H17: 0 | I17: 37866.44282
B18: 30000 | C18: =Bemessung!AG20-Bemessung!AG50 -> 5429.528632 | D18: =Bemessung!BA20-Bemessung!BA50 -> 35141.66011 | E18: 40571.18874 | F18: =Bemessung!BT50 -> 0 | G18: 0 | H18: 0 | I18: 40571.18874
B19: 32000 | C19: =Bemessung!AG21-Bemessung!AG51 -> 5791.497207 | D19: =Bemessung!BA21-Bemessung!BA51 -> 37484.43745 | E19: 43275.93466 | F19: =Bemessung!BT51 -> 0 | G19: 0 | H19: 0 | I19: 43275.93466
B20: 34000 | C20: =Bemessung!AG22-Bemessung!AG52 -> 6153.465782 | D20: =Bemessung!BA22-Bemessung!BA52 -> 39827.21479 | E20: 45980.68057 | F20: =Bemessung!BT52 -> 0 | G20: 0 | H20: 0 | I20: 45980.68057
B21: 36000 | C21: =Bemessung!AG23-Bemessung!AG53 -> 6515.434358 | D21: =Bemessung!BA23-Bemessung!BA53 -> 42169.99213 | E21: 48685.42649 | F21: =Bemessung!BT53 -> 0 | G21: 0 | H21: 0 | I21: 48685.42649
B22: 38000 | C22: =Bemessung!AG24-Bemessung!AG54 -> 6877.402933 | D22: =Bemessung!BA24-Bemessung!BA54 -> 44512.76947 | E22: 51390.17241 | F22: =Bemessung!BT54 -> 0 | G22: 0 | H22: 0 | I22: 51390.17241
B23: 40000 | C23: =Bemessung!AG25-Bemessung!AG55 -> 7239.371509 | D23: =Bemessung!BA25-Bemessung!BA55 -> 46855.54681 | E23: 54094.91832 | F23: =Bemessung!BT55 -> 0 | G23: 0 | H23: 0 | I23: 54094.91832
A24: Ersparnis bei derzeitiger (mittlerer) Belastung | B24: ='Dateneingabe und Ergebnisse'!F5 -> 15000 | C24: =Bemessung!AG26-Bemessung!AG56 -> 2714.764316 | D24: =Bemessung!BA26-Bemessung!BA56 -> 17570.83005 | E24: 20285.59437 | F24: =Bemessung!BT56 -> 0 | G24: ='Dateneingabe und Ergebnisse'!I68 -> 0 | H24: ='Dateneingabe und Ergebnisse'!I60 -> 0 | I24: =E24+F24-G24 -> 20285.59437

Sheet Berechnung Grafik_Statisch (hidden)
A1: Berechnung statische Armotisationszeit | B1: ALLGEMEIN | C1: Investitionskostendifferenz
A2: Betriebskostenänderung | B2: Einwohnerwerte | C2: 0 | D2: =200000 -> 200000 | E2: =D2+200000 -> 400000 | F2: =E2+200000 -> 600000 | G2: 800000 | H2: 1000000 | I2: 1200000 | J2: 1400000 | K2: 1600000 | L2: 1800000 | M2: 2000000
A3: Euro/Jahr | B3: EW | C3: Amortisationszeit
A4: =Betriebskostenersparnis!I4 -> 2704.745916 | B4: 2000 | C4: =IF(C$2/$A4>50,#N/A,C$2/$A4) -> 0 | D4: =IF(D$2/$A4>50,#N/A,D$2/$A4) ->  | E4: =IF(E$2/$A4>50,#N/A,E$2/$A4) -> 
A5: =Betriebskostenersparnis!I5 -> 5409.491832 | B5: 4000 | C5: =IF(C$2/$A5>50,#N/A,C$2/$A5) -> 0 | D5: =IF(D$2/$A5>50,#N/A,D$2/$A5) -> 36.97204954
A6: =Betriebskostenersparnis!I6 -> 8114.237748 | B6: 6000 | C6: 0 | D6: 24.64803303 | E6: 49.29606605
A7: =Betriebskostenersparnis!I7 -> 10818.98366 | B7: 8000 | C7: 0 | D7: 18.48602477 | E7: 36.97204954
A8: =Betriebskostenersparnis!I8 -> 13523.72958 | B8: 10000 | C8: 0 | D8: 14.78881982 | E8: 29.57763963 | F8: 44.36645945
A9: =Betriebskostenersparnis!I9 -> 16228.4755 | B9: 12000 | C9: 0 | D9: 12.32401651 | E9: 24.64803303 | F9: 36.97204954 | G9: 49.29606605
A10: =Betriebskostenersparnis!I10 -> 18933.22141 | B10: 14000 | C10: 0 | D10: 10.56344273 | E10: 21.12688545 | F10: 31.69032818 | G10: 42.2537709
A11: =Betriebskostenersparnis!I11 -> 21637.96733 | B11: 16000 | C11: 0 | D11: 9.243012385 | E11: 18.48602477 | F11: 27.72903715 | G11: 36.97204954 | H11: 46.21506192
A12: =Betriebskostenersparnis!I12 -> 24342.71324 | B12: 18000 | C12: 0 | D12: 8.216011009 | E12: 16.43202202 | F12: 24.64803303 | G12: 32.86404403 | H12: 41.08005504 | I12: 49.29606605
A13: =Betriebskostenersparnis!I13 -> 27047.45916 | B13: 20000 | C13: 0 | D13: 7.394409908 | E13: 14.78881982 | F13: 22.18322972 | G13: 29.57763963 | H13: 36.97204954 | I13: 44.36645945
A14: =Betriebskostenersparnis!I14 -> 29752.20508 | B14: 22000 | C14: 0 | D14: 6.722190825 | E14: 13.44438165 | F14: 20.16657248 | G14: 26.8887633 | H14: 33.61095413 | I14: 40.33314495 | J14: 47.05533578
A15: =Betriebskostenersparnis!I15 -> 32456.95099 | B15: 24000 | C15: 0 | D15: 6.162008257 | E15: 12.32401651 | F15: 18.48602477 | G15: 24.64803303 | H15: 30.81004128 | I15: 36.97204954 | J15: 43.1340578 | K15: 49.29606605
A16: =Betriebskostenersparnis!I16 -> 35161.69691 | B16: 26000 | C16: 0 | D16: 5.688007621 | E16: 11.37601524 | F16: 17.06402286 | G16: 22.75203049 | H16: 28.44003811 | I16: 34.12804573 | J16: 39.81605335 | K16: 45.50406097
A17: =Betriebskostenersparnis!I17 -> 37866.44282 | B17: 28000 | C17: 0 | D17: 5.281721363 | E17: 10.56344273 | F17: 15.84516409 | G17: 21.12688545 | H17: 26.40860681 | I17: 31.69032818 | J17: 36.97204954 | K17: 42.2537709 | L17: 47.53549226
A18: =Betriebskostenersparnis!I18 -> 40571.18874 | B18: 30000 | C18: 0 | D18: 4.929606605 | E18: 9.85921321 | F18: 14.78881982 | G18: 19.71842642 | H18: 24.64803303 | I18: 29.57763963 | J18: 34.50724624 | K18: 39.43685284 | L18: 44.36645945 | M18: 49.29606605
A19: =Betriebskostenersparnis!I19 -> 43275.93466 | B19: 32000 | C19: 0 | D19: 4.621506192 | E19: 9.243012385 | F19: 13.86451858 | G19: 18.48602477 | H19: 23.10753096 | I19: 27.72903715 | J19: 32.35054335 | K19: 36.97204954 | L19: 41.59355573 | M19: 46.21506192
A20: =Betriebskostenersparnis!I20 -> 45980.68057 | B20: 34000 | C20: 0 | D20: 4.349652887 | E20: 8.699305774 | F20: 13.04895866 | G20: 17.39861155 | H20: 21.74826443 | I20: 26.09791732 | J20: 30.44757021 | K20: 34.7972231 | L20: 39.14687598 | M20: 43.49652887
A21: =Betriebskostenersparnis!I21 -> 48685.42649 | B21: 36000 | C21: 0 | D21: 4.108005504 | E21: 8.216011009 | F21: 12.32401651 | G21: 16.43202202 | H21: 20.54002752 | I21: 24.64803303 | J21: 28.75603853 | K21: 32.86404403 | L21: 36.97204954 | M21: 41.08005504
A22: =Betriebskostenersparnis!I22 -> 51390.17241 | B22: 38000 | C22: 0 | D22: 3.891794688 | E22: 7.783589377 | F22: 11.67538407 | G22: 15.56717875 | H22: 19.45897344 | I22: 23.35076813 | J22: 27.24256282 | K22: 31.13435751 | L22: 35.0261522 | M22: 38.91794688
A23: =Betriebskostenersparnis!I23 -> 54094.91832 | B23: 40000 | C23: 0 | D23: 3.697204954 | E23: 7.394409908 | F23: 11.09161486 | G23: 14.78881982 | H23: 18.48602477 | I23: 22.18322972 | J23: 25.88043468 | K23: 29.57763963 | L23: 33.27484459 | M23: 36.97204954
A25: Berechnung statische Armortisationszeit | B25: KLÄRANLAGE X
A26: Betriebskostenänderung | B26: Einwohnerwerte | C26: Investitionskostendifferenz | D26: Armotisationszeit | F26: Aufsummierte Kosten (Formel !!)
A27: Euro/Jahr | B27: EW
B28: 0 | C28: 0 | D28: =D29 -> 9.85921321
A29: =Betriebskostenersparnis!I24 -> 20285.59437 | B29: =Betriebskostenersparnis!B24 -> 15000 | C29: =IF('Berechnung Grafik Statisch 2'!L18<0,'Dateneingabe und Ergebnisse'!F74,'Dateneingabe und Ergebnisse'!#REF!) -> 200000 | D29: =IF(C29/A29>60,#N/A,C29/A29) -> 9.85921321
B30: =B29 -> 15000 | C30: =C29 -> 200000 | D30: 0
A32: Berechnung für tA = f (IKD)
A33: Betriebskostenänderung | B33: Einwohnerwerte
A34: Euro/Jahr | B34: EW | C34: Amortisationszeit
A35: =A29 -> 20285.59437 | B35: =B29 -> 15000 | C35: =IF(C$2/$A35>50,#N/A,C$2/$A35) -> 0 | D35: 9.85921321 | E35: 19.71842642 | F35: 29.57763963 | G35: 39.43685284 | H35: 49.29606605

Sheet Berechnung Grafik Statisch 2 (hidden)
B2: Variante: Aaerobe Stabilisierung | E2: Variante: Anaerobe Stabilisierung
A3: Jahre | B3: Investitionskosten | C3: Laufende Kosten | D3: Gesamtkosten | E3: Investitionskosten | F3: Laufende Kosten | G3: Einsparung Eigenstrom | H3: Gesamtkosten | I3: Jahre | J3: Gesamtkosten Aerobe Stabilsierung | K3: Gesamtkosten Anerobe Stabilsierung | L3: Differenz | M3: Betrag der Differenz | O3: Kontrolle Betriebskostenersparnis | P3: Kontrolle Amortisationszeit
J4: Mio. Euro | K4: Mio. Euro | L4: Euro
A5: 0 | B5: ='Dateneingabe und Ergebnisse'!F64 -> 600000 | C5: 0 | D5: =B5+C5 -> 600000 | E5: ='Dateneingabe und Ergebnisse'!I64 -> 800000 | F5: 0 | G5: 0 | H5: =E5+F5-G5 -> 800000 | I5: 0 | J5: =D5/1000000 -> 0.6 | K5: =H5/1000000 -> 0.8 | L5: =(K5-J5)*1000000 -> 200000 | M5: =ABS(L5) -> 200000 | O5: =C5-F5+G5 -> 0 | P5: =(E5+E19)/O6 -> 55.21159398
A6: 1 | B6: 0 | C6: =Bemessung!BA26+Bemessung!AG26 -> 108390.7687 | D6: =D5+C6+B6 -> 708390.7687 | E6: 0 | F6: =Bemessung!BA56+Bemessung!AG56 -> 88105.17428 | G6: =Bemessung!BT56 -> 0 | H6: =H5+E6+F6-G6 -> 888105.1743 | I6: =A6 -> 1 | J6: =D6/1000000 -> 0.7083907687 | K6: =H6/1000000 -> 0.8881051743 | L6: =(K6-J6)*1000000 -> 179714.4056 | M6: =ABS(L6) -> 179714.4056 | O6: 20285.59437
A7: 2 | B7: =B6 -> 0 | C7: =C6 -> 108390.7687 | D7: =D6+C7+B7 -> 816781.5373 | E7: 0 | F7: =F6 -> 88105.17428 | G7: =G6 -> 0 | H7: =H6+E7+F7-G7 -> 976210.3486 | I7: 2 | J7: 0.8167815373 | K7: 0.9762103486 | L7: 159428.8113 | M7: 159428.8113 | O7: 20285.59437
A8: 3 | B8: =B7 -> 0 | C8: =C7 -> 108390.7687 | D8: 925172.306 | E8: 0 | F8: =F7 -> 88105.17428 | G8: =G7 -> 0 | H8: 1064315.523 | I8: 3 | J8: 0.925172306 | K8: 1.064315523 | L8: 139143.2169 | M8: 139143.2169 | O8: 20285.59437
A9: 4 | B9: 0 | C9: 108390.7687 | D9: 1033563.075 | E9: 0 | F9: 88105.17428 | G9: 0 | H9: 1152420.697 | I9: 4 | J9: 1.033563075 | K9: 1.152420697 | L9: 118857.6225 | M9: 118857.6225 | O9: 20285.59437
A10: 5 | B10: 0 | C10: 108390.7687 | D10: 1141953.843 | E10: 0 | F10: 88105.17428 | G10: 0 | H10: 1240525.871 | I10: 5 | J10: 1.141953843 | K10: 1.240525871 | L10: 98572.02815 | M10: 98572.02815 | O10: 20285.59437
A11: 6 | B11: 0 | C11: 108390.7687 | D11: 1250344.612 | E11: 0 | F11: 88105.17428 | G11: 0 | H11: 1328631.046 | I11: 6 | J11: 1.250344612 | K11: 1.328631046 | L11: 78286.43378 | M11: 78286.43378 | O11: 20285.59437
A12: 7 | B12: 0 | C12: 108390.7687 | D12: 1358735.381 | E12: 0 | F12: 88105.17428 | G12: 0 | H12: 1416736.22 | I12: 7 | J12: 1.358735381 | K12: 1.41673622 | L12: 58000.83941 | M12: 58000.83941 | O12: 20285.59437
A13: 8 | B13: 0 | C13: 108390.7687 | D13: 1467126.149 | E13: 0 | F13: 88105.17428 | G13: 0 | H13: 1504841.394 | I13: 8 | J13: 1.467126149 | K13: 1.504841394 | L13: 37715.24504 | M13: 37715.24504 | O13: 20285.59437
A14: 9 | B14: 0 | C14: 108390.7687 | D14: 1575516.918 | E14: 0 | F14: 88105.17428 | G14: 0 | H14: 1592946.569 | I14: 9 | J14: 1.575516918 | K14: 1.592946569 | L14: 17429.65067 | M14: 17429.65067 | O14: 20285.59437
A15: 10 | B15: 0 | C15: 108390.7687 | D15: 1683907.687 | E15: 0 | F15: 88105.17428 | G15: 0 | H15: 1681051.743 | I15: 10 | J15: 1.683907687 | K15: 1.681051743 | L15: -2855.943705 | M15: 2855.943705 | O15: 20285.59437
A16: 11 | B16: 0 | C16: 108390.7687 | D16: 1792298.455 | E16: 0 | F16: 88105.17428 | G16: 0 | H16: 1769156.917 | I16: 11 | J16: 1.792298455 | K16: 1.769156917 | L16: -23141.53808 | M16: 23141.53808 | O16: 20285.59437
A17: 12 | B17: 0 | C17: 108390.7687 | D17: 1900689.224 | E17: 0 | F17: 88105.17428 | G17: 0 | H17: 1857262.091 | I17: 12 | J17: 1.900689224 | K17: 1.857262091 | L17: -43427.13245 | M17: 43427.13245 | O17: 20285.59437
A18: 12.5 | B18: 0 | C18: =C17/2 -> 54195.38433 | D18: 1954884.608 | E18: 0 | F18: =F17/2 -> 44052.58714 | G18: =G17/2 -> 0 | H18: 1901314.679 | I18: 12.5 | J18: 1.954884608 | K18: 1.901314679 | L18: -53569.92963 | M18: 53569.92963
A19: 12.5 | B19: ='Dateneingabe und Ergebnisse'!F52*'Dateneingabe und Ergebnisse'!F54/100 -> 240000 | C19: 0 | D19: 2194884.608 | E19: ='Dateneingabe und Ergebnisse'!I53*'Dateneingabe und Ergebnisse'!I54/100+'Dateneingabe und Ergebnisse'!I56 -> 320000 | F19: 0 | G19: 0 | H19: 2221314.679 | I19: 12.5 | J19: 2.194884608 | K19: 2.221314679 | L19: 26430.07037 | M19: 26430.07037
A20: 13 | B20: =B17 -> 0 | C20: =C17/2 -> 54195.38433 | D20: 2249079.993 | E20: 0 | F20: =F17/2 -> 44052.58714 | G20: =G17/2 -> 0 | H20: 2265367.266 | I20: 13 | J20: 2.249079993 | K20: 2.265367266 | L20: 16287.27318 | M20: 16287.27318 | O20: 10142.79719
A21: 14 | B21: 0 | C21: =C17 -> 108390.7687 | D21: 2357470.761 | E21: 0 | F21: =F17 -> 88105.17428 | G21: =G17 -> 0 | H21: 2353472.44 | I21: 14 | J21: 2.357470761 | K21: 2.35347244 | L21: -3998.321187 | M21: 3998.321187 | O21: 20285.59437
A22: 15 | B22: =B21 -> 0 | C22: =C21 -> 108390.7687 | D22: 2465861.53 | E22: 0 | F22: 88105.17428 | G22: =G21 -> 0 | H22: 2441577.614 | I22: 15 | J22: 2.46586153 | K22: 2.441577614 | L22: -24283.91556 | M22: 24283.91556 | O22: 20285.59437
A23: 16 | B23: 0 | C23: 108390.7687 | D23: 2574252.298 | E23: 0 | F23: =F22 -> 88105.17428 | G23: =G22 -> 0 | H23: 2529682.789 | I23: 16 | J23: 2.574252298 | K23: 2.529682789 | L23: -44569.50993 | M23: 44569.50993 | O23: 20285.59437
A24: 17 | B24: =B23 -> 0 | C24: 108390.7687 | D24: 2682643.067 | E24: 0 | F24: 88105.17428 | G24: 0 | H24: 2617787.963 | I24: 17 | J24: 2.682643067 | K24: 2.617787963 | L24: -64855.1043 | M24: 64855.1043 | O24: 20285.59437
A25: 18 | B25: =B24 -> 0 | C25: 108390.7687 | D25: 2791033.836 | E25: 0 | F25: 88105.17428 | G25: 0 | H25: 2705893.137 | I25: 18 | J25: 2.791033836 | K25: 2.705893137 | L25: -85140.69867 | M25: 85140.69867 | O25: 20285.59437
A26: 19 | B26: 0 | C26: 108390.7687 | D26: 2899424.604 | E26: 0 | F26: 88105.17428 | G26: 0 | H26: 2793998.311 | I26: 19 | J26: 2.899424604 | K26: 2.793998311 | L26: -105426.293 | M26: 105426.293 | O26: 20285.59437
A27: 20 | B27: 0 | C27: 108390.7687 | D27: 3007815.373 | E27: 0 | F27: 88105.17428 | G27: 0 | H27: 2882103.486 | I27: 20 | J27: 3.007815373 | K27: 2.882103486 | L27: -125711.8874 | M27: 125711.8874 | O27: 20285.59437
A28: 21 | B28: 0 | C28: 108390.7687 | D28: 3116206.142 | E28: 0 | F28: 88105.17428 | G28: 0 | H28: 2970208.66 | I28: 21 | J28: 3.116206142 | K28: 2.97020866 | L28: -145997.4818 | M28: 145997.4818 | O28: 20285.59437
A29: 22 | B29: 0 | C29: 108390.7687 | D29: 3224596.91 | E29: 0 | F29: 88105.17428 | G29: 0 | H29: 3058313.834 | I29: 22 | J29: 3.22459691 | K29: 3.058313834 | L29: -166283.0762 | M29: 166283.0762 | O29: 20285.59437
A30: 23 | B30: 0 | C30: 108390.7687 | D30: 3332987.679 | E30: 0 | F30: 88105.17428 | G30: 0 | H30: 3146419.009 | I30: 23 | J30: 3.332987679 | K30: 3.146419009 | L30: -186568.6705 | M30: 186568.6705 | O30: 20285.59437
A31: 24 | B31: 0 | C31: 108390.7687 | D31: 3441378.448 | E31: 0 | F31: 88105.17428 | G31: 0 | H31: 3234524.183 | I31: 24 | J31: 3.441378448 | K31: 3.234524183 | L31: -206854.2649 | M31: 206854.2649 | O31: 20285.59437
A32: 25 | B32: 0 | C32: 108390.7687 | D32: 3549769.216 | E32: 0 | F32: 88105.17428 | G32: 0 | H32: 3322629.357 | I32: 25 | J32: 3.549769216 | K32: 3.322629357 | L32: -227139.8593 | M32: 227139.8593 | O32: 20285.59437
A33: 26 | B33: 0 | C33: 108390.7687 | D33: 3658159.985 | E33: 0 | F33: 88105.17428 | G33: 0 | H33: 3410734.531 | I33: 26 | J33: 3.658159985 | K33: 3.410734531 | L33: -247425.4536 | M33: 247425.4536 | O33: 20285.59437
A34: 27 | B34: 0 | C34: 108390.7687 | D34: 3766550.754 | E34: 0 | F34: 88105.17428 | G34: 0 | H34: 3498839.706 | I34: 27 | J34: 3.766550754 | K34: 3.498839706 | L34: -267711.048 | M34: 267711.048 | O34: 20285.59437
A35: 28 | B35: 0 | C35: 108390.7687 | D35: 3874941.522 | E35: 0 | F35: 88105.17428 | G35: 0 | H35: 3586944.88 | I35: 28 | J35: 3.874941522 | K35: 3.58694488 | L35: -287996.6424 | M35: 287996.6424 | O35: 20285.59437
A36: 29 | B36: 0 | C36: 108390.7687 | D36: 3983332.291 | E36: 0 | F36: 88105.17428 | G36: 0 | H36: 3675050.054 | I36: 29 | J36: 3.983332291 | K36: 3.675050054 | L36: -308282.2367 | M36: 308282.2367 | O36: 20285.59437
A37: 30 | B37: 0 | C37: 108390.7687 | D37: 4091723.06 | E37: 0 | F37: 88105.17428 | G37: 0 | H37: 3763155.229 | I37: 30 | J37: 4.09172306 | K37: 3.763155229 | L37: -328567.8311 | M37: 328567.8311 | O37: 20285.59437

Sheet Berechnung Grafik_Dynamisch (hidden)
A1: Berechnung Diskontierungsfaktor für dynamische Armotisationszeit | B1: ALLGEMEIN | C1: Investitionskostendifferenz | O1: dynamische Amortisationszeit | P1: ALLGEMEIN | Q1: Investitionskostendifferenz
A2: Betriebskostenänderung | B2: Einwohnerwerte | C2: 0 | D2: 200000 | E2: =D2+200000 -> 400000 | F2: =E2+200000 -> 600000 | G2: 800000 | H2: 1000000 | I2: 1200000 | J2: 1400000 | K2: 1600000 | L2: 1800000 | M2: 2000000 | O2: Zinsatz für Tabelle | P2: Einwohnerwerte | Q2: 0 | R2: 200000 | S2: =R2+200000 -> 400000 | T2: =S2+200000 -> 600000 | U2: =T2+200000 -> 800000 | V2: =U2+200000 -> 1000000 | W2: =V2+200000 -> 1200000 | X2: =W2+200000 -> 1400000 | Y2: =X2+200000 -> 1600000 | Z2: =Y2+200000 -> 1800000 | AA2: =Z2+200000 -> 2000000
A3: Euro/Jahr | B3: EW | G3: Euro | O3: =IF(O5=0,0.00000000001,O5) -> 0.03 | P3: EW | Q3: Amortisationszeit
A4: =Betriebskostenersparnis!I4 -> 2704.745916 | B4: 2000 | C4: =C$2/$A4 -> 0 | D4: =D$2/$A4 -> 73.94409908 | E4: =E$2/$A4 -> 147.8881982 | F4: 221.8322972 | G4: =G$2/$A4 -> 295.7763963 | H4: 369.7204954 | I4: 443.6645945 | J4: 517.6086936 | K4: 591.5527926 | L4: 665.4968917 | M4: =M$2/$A4 -> 739.4409908 | O4: Zinssatz von Eingabe = | P4: 2000 | Q4: 0 | R4: =IF(ISERROR(LOG(1/(1-$O$3*D4),1+$O$3)),#N/A,IF(LOG(1/(1-$O$3*D4),1+$O$3)>50,#N/A,LOG(1/(1-$O$3*D4),1+$O$3))) ->  | S4: =IF(ISERROR(LOG(1/(1-$O$3*E4),1+$O$3)),#N/A,IF(LOG(1/(1-$O$3*E4),1+$O$3)>50,#N/A,LOG(1/(1-$O$3*E4),1+$O$3))) -> 
A5: =Betriebskostenersparnis!I5 -> 5409.491832 | B5: 4000 | C5: =C$2/$A5 -> 0 | D5: 36.97204954 | E5: 73.94409908 | F5: 110.9161486 | G5: 147.8881982 | H5: 184.8602477 | I5: 221.8322972 | J5: 258.8043468 | K5: 295.7763963 | L5: 332.7484459 | M5: 369.7204954 | O5: ='Dateneingabe und Ergebnisse'!F58/100 -> 0.03 | P5: 4000 | Q5: 0 | S5: =IF(ISERROR(LOG(1/(1-$O$3*E5),1+$O$3)),#N/A,IF(LOG(1/(1-$O$3*E5),1+$O$3)>50,#N/A,LOG(1/(1-$O$3*E5),1+$O$3))) ->  | T5: =IF(ISERROR(LOG(1/(1-$O$3*F5),1+$O$3)),#N/A,IF(LOG(1/(1-$O$3*F5),1+$O$3)>50,#N/A,LOG(1/(1-$O$3*F5),1+$O$3))) ->  | U5: =IF(ISERROR(LOG(1/(1-$O$3*G5),1+$O$3)),#N/A,IF(LOG(1/(1-$O$3*G5),1+$O$3)>50,#N/A,LOG(1/(1-$O$3*G5),1+$O$3))) ->  | V5: =IF(ISERROR(LOG(1/(1-$O$3*H5),1+$O$3)),#N/A,IF(LOG(1/(1-$O$3*H5),1+$O$3)>50,#N/A,LOG(1/(1-$O$3*H5),1+$O$3))) ->  | W5: =IF(ISERROR(LOG(1/(1-$O$3*I5),1+$O$3)),#N/A,IF(LOG(1/(1-$O$3*I5),1+$O$3)>50,#N/A,LOG(1/(1-$O$3*I5),1+$O$3))) ->  | X5: =IF(ISERROR(LOG(1/(1-$O$3*J5),1+$O$3)),#N/A,IF(LOG(1/(1-$O$3*J5),1+$O$3)>50,#N/A,LOG(1/(1-$O$3*J5),1+$O$3))) ->  | Y5: =IF(ISERROR(LOG(1/(1-$O$3*K5),1+$O$3)),#N/A,IF(LOG(1/(1-$O$3*K5),1+$O$3)>50,#N/A,LOG(1/(1-$O$3*K5),1+$O$3))) ->  | Z5: =IF(ISERROR(LOG(1/(1-$O$3*L5),1+$O$3)),#N/A,IF(LOG(1/(1-$O$3*L5),1+$O$3)>50,#N/A,LOG(1/(1-$O$3*L5),1+$O$3))) ->  | AA5: =IF(ISERROR(LOG(1/(1-$O$3*M5),1+$O$3)),#N/A,IF(LOG(1/(1-$O$3*M5),1+$O$3)>50,#N/A,LOG(1/(1-$O$3*M5),1+$O$3))) -> 
A6: =Betriebskostenersparnis!I6 -> 8114.237748 | B6: 6000 | C6: 0 | D6: 24.64803303 | E6: 49.29606605 | F6: 73.94409908 | G6: 98.5921321 | H6: 123.2401651 | I6: 147.8881982 | J6: 172.5362312 | K6: 197.1842642 | L6: 221.8322972 | M6: 246.4803303 | P6: 6000 | Q6: 0 | R6: 45.50001416
A7: =Betriebskostenersparnis!I7 -> 10818.98366 | B7: 8000 | C7: 0 | D7: 18.48602477 | E7: 36.97204954 | F7: 55.45807431 | G7: 73.94409908 | H7: 92.43012385 | I7: 110.9161486 | J7: 129.4021734 | K7: 147.8881982 | L7: 166.3742229 | M7: 184.8602477 | P7: 8000 | Q7: 0 | R7: 27.36035389
A8: =Betriebskostenersparnis!I8 -> 13523.72958 | B8: 10000 | C8: 0 | D8: 14.78881982 | E8: 29.57763963 | F8: 44.36645945 | G8: 59.15527926 | H8: 73.94409908 | I8: 88.73291889 | J8: 103.5217387 | K8: 118.3105585 | L8: 133.0993783 | M8: 147.8881982 | P8: 10000 | Q8: 0 | R8: 19.83787822
A9: =Betriebskostenersparnis!I9 -> 16228.4755 | B9: 12000 | C9: 0 | D9: 12.32401651 | E9: 24.64803303 | F9: 36.97204954 | G9: 49.29606605 | H9: 61.62008257 | I9: 73.94409908 | J9: 86.26811559 | K9: 98.5921321 | L9: 110.9161486 | M9: 123.2401651 | P9: 12000 | Q9: 0 | R9: 15.61605562 | S9: 45.50001416
A10: =Betriebskostenersparnis!I10 -> 18933.22141 | B10: 14000 | C10: 0 | D10: 10.56344273 | E10: 21.12688545 | F10: 31.69032818 | G10: 42.2537709 | H10: 52.81721363 | I10: 63.38065635 | J10: 73.94409908 | K10: 84.5075418 | L10: 95.07098453 | M10: 105.6344273 | P10: 14000 | Q10: 0 | R10: 12.89358136 | S10: 33.98627461
A11: =Betriebskostenersparnis!I11 -> 21637.96733 | B11: 16000 | C11: 0 | D11: 9.243012385 | E11: 18.48602477 | F11: 27.72903715 | G11: 36.97204954 | H11: 46.21506192 | I11: 55.45807431 | J11: 64.70108669 | K11: 73.94409908 | L11: 83.18711146 | M11: 92.43012385 | P11: 16000 | Q11: 0 | R11: 10.98649922 | S11: 27.36035389
A12: =Betriebskostenersparnis!I12 -> 24342.71324 | B12: 18000 | C12: 0 | D12: 8.216011009 | E12: 16.43202202 | F12: 24.64803303 | G12: 32.86404403 | H12: 41.08005504 | I12: 49.29606605 | J12: 57.51207706 | K12: 65.72808807 | L12: 73.94409908 | M12: 82.16011009 | P12: 18000 | Q12: 0 | R12: 9.574141552 | S12: 22.97679995 | T12: 45.50001416
A13: =Betriebskostenersparnis!I13 -> 27047.45916 | B13: 20000 | C13: 0 | D13: 7.394409908 | E13: 14.78881982 | F13: 22.18322972 | G13: 29.57763963 | H13: =H$2/$A13 -> 36.97204954 | I13: 44.36645945 | J13: 51.76086936 | K13: 59.15527926 | L13: 66.54968917 | M13: 73.94409908 | P13: 20000 | Q13: 0 | R13: 8.485229534 | S13: 19.83787822 | T13: 37.04849399
A14: =Betriebskostenersparnis!I14 -> 29752.20508 | B14: 22000 | C14: 0 | D14: 6.722190825 | E14: 13.44438165 | F14: 20.16657248 | G14: 26.8887633 | H14: 33.61095413 | I14: 40.33314495 | J14: 47.05533578 | K14: 53.7775266 | L14: 60.49971743 | M14: =M$2/$A14 -> 67.22190825 | P14: 22000 | Q14: 0 | R14: 7.61965509 | S14: 17.47004183 | T14: 31.42422189
A15: =Betriebskostenersparnis!I15 -> 32456.95099 | B15: 24000 | C15: 0 | D15: 6.162008257 | E15: 12.32401651 | F15: 18.48602477 | G15: 24.64803303 | H15: 30.81004128 | I15: 36.97204954 | J15: 43.1340578 | K15: 49.29606605 | L15: 55.45807431 | M15: 61.62008257 | P15: 24000 | Q15: 0 | R15: 6.91488456 | S15: 15.61605562 | T15: 27.36035389 | U15: 45.50001416
A16: =Betriebskostenersparnis!I16 -> 35161.69691 | B16: 26000 | C16: 0 | D16: 5.688007621 | E16: 11.37601524 | F16: 17.06402286 | G16: 22.75203049 | H16: 28.44003811 | I16: 34.12804573 | J16: 39.81605335 | K16: 45.50406097 | L16: 51.19206859 | M16: 56.88007621 | P16: 26000 | Q16: 0 | R16: 6.329797606 | S16: 14.1229476 | T16: 24.26611713 | U16: 38.81988609
A17: =Betriebskostenersparnis!I17 -> 37866.44282 | B17: 28000 | C17: 0 | D17: 5.281721363 | E17: 10.56344273 | F17: 15.84516409 | G17: 21.12688545 | H17: 26.40860681 | I17: 31.69032818 | J17: 36.97204954 | K17: 42.2537709 | L17: 47.53549226 | M17: 52.81721363 | P17: 28000 | Q17: 0 | R17: 5.836224277 | S17: 12.89358136 | T17: 21.8220374 | U17: 33.98627461
A18: =Betriebskostenersparnis!I18 -> 40571.18874 | B18: 30000 | C18: 0 | D18: 4.929606605 | E18: 9.85921321 | F18: 14.78881982 | G18: 19.71842642 | H18: 24.64803303 | I18: 29.57763963 | J18: 34.50724624 | K18: 39.43685284 | L18: 44.36645945 | M18: 49.29606605 | P18: 30000 | Q18: 0 | R18: 5.414209163 | S18: 11.86311108 | T18: 19.83787822 | U18: 30.29191105 | V18: 45.50001416
A19: =Betriebskostenersparnis!I19 -> 43275.93466 | B19: 32000 | C19: 0 | D19: 4.621506192 | E19: 9.243012385 | F19: 13.86451858 | G19: 18.48602477 | H19: 23.10753096 | I19: 27.72903715 | J19: 32.35054335 | K19: 36.97204954 | L19: 41.59355573 | M19: 46.21506192 | P19: 32000 | Q19: 0 | R19: 5.049215551 | S19: 10.98649922 | T19: 18.19234591 | U19: 27.36035389 | V19: 39.97603547
A20: =Betriebskostenersparnis!I20 -> 45980.68057 | B20: 34000 | C20: 0 | D20: =D$2/$A20 -> 4.349652887 | E20: 8.699305774 | F20: 13.04895866 | G20: =G$2/$A20 -> 17.39861155 | H20: 21.74826443 | I20: 26.09791732 | J20: 30.44757021 | K20: 34.7972231 | L20: 39.14687598 | M20: 43.49652887 | P20: 34000 | Q20: 0 | R20: 4.730400367 | S20: 10.23144218 | T20: 16.80403097 | U20: 24.96912435 | V20: 35.7538436
A21: =Betriebskostenersparnis!I21 -> 48685.42649 | B21: 36000 | C21: 0 | D21: 4.108005504 | E21: 8.216011009 | F21: 12.32401651 | G21: =G$2/$A21 -> 16.43202202 | H21: 20.54002752 | I21: 24.64803303 | J21: 28.75603853 | K21: 32.86404403 | L21: 36.97204954 | M21: 41.08005504 | P21: 36000 | Q21: 0 | R21: 4.449509542 | S21: 9.574141552 | T21: 15.61605562 | U21: 22.97679995 | V21: 32.39765397 | W21: 45.50001416
A22: =Betriebskostenersparnis!I22 -> 51390.17241 | B22: 38000 | C22: 0 | D22: 3.891794688 | E22: 7.783589377 | F22: 11.67538407 | G22: =G$2/$A22 -> 15.56717875 | H22: 19.45897344 | I22: 23.35076813 | J22: 27.24256282 | K22: 31.13435751 | L22: 35.0261522 | M22: 38.91794688 | P22: 38000 | Q22: 0 | R22: 4.200147897 | S22: 8.996663661 | T22: 14.58737519 | U22: 21.28850394 | V22: 29.65327775 | W22: 40.7904825
A23: =Betriebskostenersparnis!I23 -> 54094.91832 | B23: 40000 | C23: 0 | D23: 3.697204954 | E23: 7.394409908 | F23: 11.09161486 | G23: =G$2/$A23 -> 14.78881982 | H23: 18.48602477 | I23: 22.18322972 | J23: 25.88043468 | K23: 29.57763963 | L23: 33.27484459 | M23: 36.97204954 | P23: 40000 | Q23: 0 | R23: 3.977283177 | S23: 8.485229534 | T23: 13.68756955 | U23: 19.83787822 | V23: 27.36035389 | W23: 37.04849399
A27: Berechnung Diskontierungsfaktor für dynamische Armotisationszeit | B27: Kläranlage X | O27: dynamische Amortisationszeit | P27: ='Dateneingabe und Ergebnisse'!A3 -> 0
A28: Betriebskostenänderung | B28: Einwohnerwerte | C28: Investitionskostendifferenz | D28: Diskontierungsf. | O28: Betriebskostenänderung | P28: Einwohnerwerte | Q28: Armotisationszeit
A29: Euro/Jahr | B29: EW | C29: Euro | D29: DFAK | O29: Euro/Jahr | P29: EW
C30: 0 | P30: 0 | Q30: =Q31 -> 11.86311108
A31: =Betriebskostenersparnis!I24 -> 20285.59437 | B31: =Betriebskostenersparnis!B24 -> 15000 | C31: =IF('Berechnung Grafik Dynamisch 2'!Q18<0,'Dateneingabe und Ergebnisse'!F74,'Dateneingabe und Ergebnisse'!F75) -> 200000 | D31: =C31/A31 -> 9.85921321 | O31: =A31 -> 20285.59437 | P31: =Betriebskostenersparnis!B24 -> 15000 | Q31: =IF(ISERROR(LOG(1/(1-$O$3*D31),1+$O$3)),"",(LOG(1/(1-$O$3*D31),1+$O$3))) -> 11.86311108
C32: =C31 -> 200000 | P32: =P31 -> 15000 | Q32: 0
A34: Berechnung für tA = f (IKD) | O34: Berechnung für tA = f (IKD)
A35: Betriebskostenänderung | B35: Einwohnerwerte | O35: Betriebskostenänderung | P35: Einwohnerwerte
A36: Euro/Jahr | B36: EW | C36: Diskontierungsfaktor | O36: Euro/Jahr | P36: EW | Q36: Amortisationszeit
A37: =A31 -> 20285.59437 | B37: =B31 -> 15000 | C37: =C$2/$A37 -> 0 | D37: 9.85921321 | E37: 19.71842642 | F37: 29.57763963 | G37: 39.43685284 | H37: 49.29606605 | I37: 59.15527926 | J37: 69.01449247 | K37: 78.87370568 | L37: 88.73291889 | M37: 98.5921321 | O37: =O31 -> 20285.59437 | P37: =P31 -> 15000 | Q37: 0 | R37: =IF(ISERROR(LOG(1/(1-$O$3*D37),1+$O$3)),#N/A,IF(LOG(1/(1-$O$3*D37),1+$O$3)>50,#N/A,LOG(1/(1-$O$3*D37),1+$O$3))) -> 11.86311108 | S37: =IF(ISERROR(LOG(1/(1-$O$3*E37),1+$O$3)),#N/A,IF(LOG(1/(1-$O$3*E37),1+$O$3)>50,#N/A,LOG(1/(1-$O$3*E37),1+$O$3))) -> 30.29191105 | T37: =IF(ISERROR(LOG(1/(1-$O$3*F37),1+$O$3)),#N/A,IF(LOG(1/(1-$O$3*F37),1+$O$3)>50,#N/A,LOG(1/(1-$O$3*F37),1+$O$3))) ->  | U37: =IF(ISERROR(LOG(1/(1-$O$3*G37),1+$O$3)),#N/A,IF(LOG(1/(1-$O$3*G37),1+$O$3)>50,#N/A,LOG(1/(1-$O$3*G37),1+$O$3))) ->  | V37: =IF(ISERROR(LOG(1/(1-$O$3*H37),1+$O$3)),#N/A,IF(LOG(1/(1-$O$3*H37),1+$O$3)>50,#N/A,LOG(1/(1-$O$3*H37),1+$O$3))) ->  | W37: =IF(ISERROR(LOG(1/(1-$O$3*I37),1+$O$3)),#N/A,IF(LOG(1/(1-$O$3*I37),1+$O$3)>50,#N/A,LOG(1/(1-$O$3*I37),1+$O$3))) ->  | X37: =IF(ISERROR(LOG(1/(1-$O$3*J37),1+$O$3)),#N/A,IF(LOG(1/(1-$O$3*J37),1+$O$3)>50,#N/A,LOG(1/(1-$O$3*J37),1+$O$3))) ->  | Y37: =IF(ISERROR(LOG(1/(1-$O$3*K37),1+$O$3)),#N/A,IF(LOG(1/(1-$O$3*K37),1+$O$3)>50,#N/A,LOG(1/(1-$O$3*K37),1+$O$3))) ->  | Z37: =IF(ISERROR(LOG(1/(1-$O$3*L37),1+$O$3)),#N/A,IF(LOG(1/(1-$O$3*L37),1+$O$3)>50,#N/A,LOG(1/(1-$O$3*L37),1+$O$3))) ->  | AA37: =IF(ISERROR(LOG(1/(1-$O$3*M37),1+$O$3)),#N/A,IF(LOG(1/(1-$O$3*M37),1+$O$3)>50,#N/A,LOG(1/(1-$O$3*M37),1+$O$3))) -> 

Sheet Berechnung Grafik Dynamisch 2 (hidden)
B2: Variante: Aaerobe Stabilisierung | G2: Variante: Anaerobe Stabilisierung
A3: Jahre | B3: Investitionskosten | C3: Diskontierte Investitionskosten | D3: Laufende Kosten | E3: Diskontierte Betriebskosten | F3: Gesamtkosten | G3: Investitionskosten | H3: Diskontierte Investitionskosten | I3: Laufende Kosten | J3: Einsparung Eigenstrom | K3: Betriebskosten Gesamt | L3: Diskontierete Betriebskosten | M3: Gesamtkosten | N3: Jahre | O3: Gesamtkosten Aerobe Stabilsierung | P3: Gesamtkosten Anerobe Stabilsierung | Q3: Differenz | T3: Kontrolle Betriebskostenersparnis | U3: Kontrolle Amortisationszeit
O4: Mio. Euro | P4: Mio. Euro
A5: 0 | B5: ='Dateneingabe und Ergebnisse'!F64 -> 600000 | C5: =B5 -> 600000 | D5: 0 | F5: =B5+E5 -> 600000 | G5: ='Dateneingabe und Ergebnisse'!I64 -> 800000 | H5: =G5 -> 800000 | I5: 0 | J5: 0 | K5: =I5+J5 -> 0 | L5: 0 | M5: =G5 -> 800000 | N5: 0 | O5: =F5/1000000 -> 0.6 | P5: =M5/1000000 -> 0.8 | Q5: =(P5-O5)*1000000 -> 200000 | T5: =D5-I5+J5 -> 0 | U5: =(G5+G19)/T6 -> 55.21159398
A6: 1 | D6: ='Dateneingabe und Ergebnisse'!F70 -> 108390.7687 | E6: =D6/(1+'Dateneingabe und Ergebnisse'!$F$58/100)^A6 -> 105233.756 | F6: =F5+E6 -> 705233.756 | G6: 0 | I6: ='Dateneingabe und Ergebnisse'!I66+'Dateneingabe und Ergebnisse'!I67+'Dateneingabe und Ergebnisse'!I68 -> 88105.17428 | J6: =Bemessung!BT56 -> 0 | K6: =I6-J6 -> 88105.17428 | L6: =K6/(1+'Dateneingabe und Ergebnisse'!$F$58/100)^A6 -> 85539.00416 | M6: =M5+L6 -> 885539.0042 | N6: =A6 -> 1 | O6: =F6/1000000 -> 0.705233756 | P6: =M6/1000000 -> 0.8855390042 | Q6: =(P6-O6)*1000000 -> 180305.2482 | T6: 20285.59437
A7: 2 | D7: =D6 -> 108390.7687 | E7: =D7/(1+'Dateneingabe und Ergebnisse'!$F$58/100)^A7 -> 102168.6951 | F7: =F6+E7 -> 807402.4511 | G7: 0 | I7: =I6 -> 88105.17428 | J7: =J6 -> 0 | K7: =I7-J7 -> 88105.17428 | L7: =K7/(1+'Dateneingabe und Ergebnisse'!$F$58/100)^A7 -> 83047.57685 | M7: =M6+L7 -> 968586.581 | N7: 2 | O7: 0.8074024511 | P7: 0.968586581 | Q7: 161184.1299 | T7: 20285.59437
A8: 3 | D8: =D7 -> 108390.7687 | E8: =D8/(1+'Dateneingabe und Ergebnisse'!$F$58/100)^A8 -> 99192.90789 | F8: 906595.359 | G8: 0 | I8: =I7 -> 88105.17428 | J8: 0 | K8: 88105.17428 | L8: =K8/(1+'Dateneingabe und Ergebnisse'!$F$58/100)^A8 -> 80628.71539 | M8: 1049215.296 | N8: 3 | O8: 0.906595359 | P8: 1.049215296 | Q8: 142619.9374 | T8: 20285.59437
A9: 4 | D9: 108390.7687 | E9: =D9/(1+'Dateneingabe und Ergebnisse'!$F$58/100)^A9 -> 96303.79406 | F9: 1002899.153 | G9: 0 | I9: 88105.17428 | J9: 0 | K9: 88105.17428 | L9: =K9/(1+'Dateneingabe und Ergebnisse'!$F$58/100)^A9 -> 78280.30621 | M9: 1127495.603 | N9: 4 | O9: 1.002899153 | P9: 1.127495603 | Q9: 124596.4496 | T9: 20285.59437
A10: 5 | D10: 108390.7687 | E10: =D10/(1+'Dateneingabe und Ergebnisse'!$F$58/100)^A10 -> 93498.82919 | F10: 1096397.982 | G10: 0 | I10: 88105.17428 | J10: 0 | K10: 88105.17428 | L10: =K10/(1+'Dateneingabe und Ergebnisse'!$F$58/100)^A10 -> 76000.29729 | M10: 1203495.9 | N10: 5 | O10: 1.096397982 | P10: 1.2034959 | Q10: 107097.9177 | T10: 20285.59437
A11: 6 | D11: 108390.7687 | E11: =D11/(1+'Dateneingabe und Ergebnisse'!$F$58/100)^A11 -> 90775.56232 | F11: 1187173.545 | G11: 0 | I11: 88105.17428 | J11: 0 | K11: 88105.17428 | L11: =K11/(1+'Dateneingabe und Ergebnisse'!$F$58/100)^A11 -> 73786.6964 | M11: 1277282.596 | N11: 6 | O11: 1.187173545 | P11: 1.277282596 | Q11: 90109.05174 | T11: 20285.59437
A12: 7 | D12: 108390.7687 | E12: =D12/(1+'Dateneingabe und Ergebnisse'!$F$58/100)^A12 -> 88131.6139 | F12: 1275305.158 | G12: 0 | I12: 88105.17428 | J12: 0 | K12: 88105.17428 | L12: =K12/(1+'Dateneingabe und Ergebnisse'!$F$58/100)^A12 -> 71637.56932 | M12: 1348920.166 | N12: 7 | O12: 1.275305158 | P12: 1.348920166 | Q12: 73615.00716 | T12: 20285.59437
A13: 8 | D13: 108390.7687 | E13: =D13/(1+'Dateneingabe und Ergebnisse'!$F$58/100)^A13 -> 85564.67369 | F13: 1360869.832 | G13: 0 | I13: 88105.17428 | J13: 0 | K13: 88105.17428 | L13: =K13/(1+'Dateneingabe und Ergebnisse'!$F$58/100)^A13 -> 69551.03817 | M13: 1418471.204 | N13: 8 | O13: 1.360869832 | P13: 1.418471204 | Q13: 57601.37164 | T13: 20285.59437
A14: 9 | D14: 108390.7687 | E14: =D14/(1+'Dateneingabe und Ergebnisse'!$F$58/100)^A14 -> 83072.49873 | F14: 1443942.331 | G14: 0 | I14: 88105.17428 | J14: 0 | K14: 88105.17428 | L14: =K14/(1+'Dateneingabe und Ergebnisse'!$F$58/100)^A14 -> 67525.27978 | M14: 1485996.484 | N14: 9 | O14: 1.443942331 | P14: 1.485996484 | Q14: 42054.15269 | T14: 20285.59437
A15: 10 | D15: 108390.7687 | E15: =D15/(1+'Dateneingabe und Ergebnisse'!$F$58/100)^A15 -> 80652.91139 | F15: 1524595.242 | G15: 0 | I15: 88105.17428 | J15: 0 | K15: 88105.17428 | L15: =K15/(1+'Dateneingabe und Ergebnisse'!$F$58/100)^A15 -> 65558.52406 | M15: 1551555.008 | N15: 10 | O15: 1.524595242 | P15: 1.551555008 | Q15: 26959.76536 | T15: 20285.59437
A16: 11 | D16: 108390.7687 | E16: =D16/(1+'Dateneingabe und Ergebnisse'!$F$58/100)^A16 -> 78303.79746 | F16: 1602899.04 | G16: 0 | I16: 88105.17428 | J16: 0 | K16: 88105.17428 | L16: =K16/(1+'Dateneingabe und Ergebnisse'!$F$58/100)^A16 -> 63649.05248 | M16: 1615204.06 | N16: 11 | O16: 1.60289904 | P16: 1.61520406 | Q16: 12305.02037 | T16: 20285.59437
A17: 12 | D17: 108390.7687 | E17: =D17/(1+'Dateneingabe und Ergebnisse'!$F$58/100)^A17 -> 76023.10433 | F17: 1678922.144 | G17: 0 | I17: 88105.17428 | J17: 0 | K17: 88105.17428 | L17: =K17/(1+'Dateneingabe und Ergebnisse'!$F$58/100)^A17 -> 61795.19658 | M17: 1676999.257 | N17: 12 | O17: 1.678922144 | P17: 1.676999257 | Q17: -1922.887376 | T17: 20285.59437
A18: 12.5 | D18: =D17/2 -> 54195.38433 | E18: =D18/(1+'Dateneingabe und Ergebnisse'!$F$58/100)^A18 -> 37453.89526 | F18: 1716376.039 | G18: 0 | I18: =I17/2 -> 44052.58714 | J18: =J17/2 -> 0 | K18: 44052.58714 | L18: =K18/(1+'Dateneingabe und Ergebnisse'!$F$58/100)^A18 -> 30444.30822 | M18: 1707443.565 | N18: 12.5 | O18: =F18/1000000 -> 1.716376039 | P18: =M18/1000000 -> 1.707443565 | Q18: -8932.474412
A19: 12.5 | B19: ='Dateneingabe und Ergebnisse'!F52*'Dateneingabe und Ergebnisse'!F54/100 -> 240000 | C19: =B19/(1+'Dateneingabe und Ergebnisse'!$F$58/100)^A19 -> 165861.6315 | D19: 0 | E19: =D19/(1+'Dateneingabe und Ergebnisse'!$F$58/100)^A19 -> 0 | F19: =F18+C19 -> 1882237.671 | G19: ='Dateneingabe und Ergebnisse'!I53*'Dateneingabe und Ergebnisse'!I54/100+'Dateneingabe und Ergebnisse'!I56 -> 320000 | H19: =G19/(1+'Dateneingabe und Ergebnisse'!$F$58/100)^A19 -> 221148.8419 | J19: =J18 -> 0 | L19: =K19/(1+'Dateneingabe und Ergebnisse'!$F$58/100)^A19 -> 0 | M19: =M18+H19 -> 1928592.407 | N19: 12.5 | O19: 1.882237671 | P19: 1.928592407 | Q19: 46354.73607
A20: 13 | D20: =D18 -> 54195.38433 | E20: =D20/(1+'Dateneingabe und Ergebnisse'!$F$58/100)^A20 -> 36904.41958 | F20: =F19+E20 -> 1919142.09 | G20: 0 | I20: =I18 -> 44052.58714 | J20: =J18 -> 0 | K20: 44052.58714 | L20: =K20/(1+'Dateneingabe und Ergebnisse'!$F$58/100)^A20 -> 29997.66824 | M20: =M19+L20 -> 1958590.075 | N20: 13 | O20: =F20/1000000 -> 1.91914209 | P20: =M20/1000000 -> 1.958590075 | Q20: 39447.98474 | T20: =D20-I20+J20 -> 10142.79719
A21: 14 | D21: =D17 -> 108390.7687 | E21: =D21/(1+'Dateneingabe und Ergebnisse'!$F$58/100)^A21 -> 71659.06714 | F21: =F20+E21 -> 1990801.157 | G21: 0 | I21: =I17 -> 88105.17428 | J21: =J17 -> 0 | K21: 88105.17428 | L21: =K21/(1+'Dateneingabe und Ergebnisse'!$F$58/100)^A21 -> 58247.8995 | M21: =M20+L21 -> 2016837.975 | N21: 14 | O21: 1.990801157 | P21: 2.016837975 | Q21: 26036.8171 | T21: 20285.59437
A22: 15 | D22: 108390.7687 | E22: =D22/(1+'Dateneingabe und Ergebnisse'!$F$58/100)^A22 -> 69571.90985 | F22: 2060373.067 | G22: 0 | I22: 88105.17428 | J22: 0 | K22: 88105.17428 | L22: =K22/(1+'Dateneingabe und Ergebnisse'!$F$58/100)^A22 -> 56551.35874 | M22: 2073389.333 | N22: 15 | O22: 2.060373067 | P22: 2.073389333 | Q22: 13016.26599 | T22: 20285.59437
A23: 16 | D23: =D22 -> 108390.7687 | E23: =D23/(1+'Dateneingabe und Ergebnisse'!$F$58/100)^A23 -> 67545.54354 | F23: 2127918.611 | G23: 0 | I23: =I22 -> 88105.17428 | J23: =J22 -> 0 | K23: =I23-J23 -> 88105.17428 | L23: =K23/(1+'Dateneingabe und Ergebnisse'!$F$58/100)^A23 -> 54904.23179 | M23: 2128293.565 | N23: 16 | O23: 2.127918611 | P23: 2.128293565 | Q23: 374.9542383 | T23: 20285.59437
A24: 17 | D24: =D23 -> 108390.7687 | E24: =D24/(1+'Dateneingabe und Ergebnisse'!$F$58/100)^A24 -> 65578.19761 | F24: 2193496.808 | G24: 0 | I24: =I23 -> 88105.17428 | J24: =J23 -> 0 | K24: 88105.17428 | L24: =K24/(1+'Dateneingabe und Ergebnisse'!$F$58/100)^A24 -> 53305.07941 | M24: 2181598.645 | N24: 17 | O24: 2.193496808 | P24: 2.181598645 | Q24: -11898.16397 | T24: 20285.59437
A25: 18 | D25: =D24 -> 108390.7687 | E25: =D25/(1+'Dateneingabe und Ergebnisse'!$F$58/100)^A25 -> 63668.15302 | F25: 2257164.962 | G25: 0 | I25: =I24 -> 88105.17428 | J25: 0 | K25: 88105.17428 | L25: =K25/(1+'Dateneingabe und Ergebnisse'!$F$58/100)^A25 -> 51752.50428 | M25: 2233351.149 | N25: 18 | O25: 2.257164962 | P25: 2.233351149 | Q25: -23813.81272 | T25: 20285.59437
A26: 19 | D26: 108390.7687 | E26: =D26/(1+'Dateneingabe und Ergebnisse'!$F$58/100)^A26 -> 61813.7408 | F26: 2318978.702 | G26: 0 | I26: 88105.17428 | J26: 0 | K26: 88105.17428 | L26: =K26/(1+'Dateneingabe und Ergebnisse'!$F$58/100)^A26 -> 50245.14978 | M26: 2283596.299 | N26: 19 | O26: 2.318978702 | P26: 2.283596299 | Q26: -35382.40373 | T26: 20285.59437
A27: 20 | D27: 108390.7687 | E27: =D27/(1+'Dateneingabe und Ergebnisse'!$F$58/100)^A27 -> 60013.34058 | F27: 2378992.043 | G27: 0 | I27: 88105.17428 | J27: 0 | K27: 88105.17428 | L27: =K27/(1+'Dateneingabe und Ergebnisse'!$F$58/100)^A27 -> 48781.69882 | M27: 2332377.997 | N27: 20 | O27: 2.378992043 | P27: 2.332377997 | Q27: -46614.04549 | T27: 20285.59437
A28: 21 | D28: 108390.7687 | E28: =D28/(1+'Dateneingabe und Ergebnisse'!$F$58/100)^A28 -> 58265.37921 | F28: 2437257.422 | G28: 0 | I28: 88105.17428 | J28: 0 | K28: 88105.17428 | L28: =K28/(1+'Dateneingabe und Ergebnisse'!$F$58/100)^A28 -> 47360.87264 | M28: 2379738.87 | N28: 21 | O28: 2.437257422 | P28: 2.37973887 | Q28: -57518.55206 | T28: 20285.59437
A29: 22 | D29: 108390.7687 | E29: =D29/(1+'Dateneingabe und Ergebnisse'!$F$58/100)^A29 -> 56568.32933 | F29: 2493825.751 | G29: 0 | I29: 88105.17428 | J29: 0 | K29: 88105.17428 | L29: =K29/(1+'Dateneingabe und Ergebnisse'!$F$58/100)^A29 -> 45981.42975 | M29: 2425720.3 | N29: 22 | O29: 2.493825751 | P29: 2.4257203 | Q29: -68105.45164 | T29: 20285.59437
A30: 23 | D30: 108390.7687 | E30: =D30/(1+'Dateneingabe und Ergebnisse'!$F$58/100)^A30 -> 54920.70808 | F30: 2548746.46 | G30: 0 | I30: 88105.17428 | J30: 0 | K30: 88105.17428 | L30: =K30/(1+'Dateneingabe und Ergebnisse'!$F$58/100)^A30 -> 44642.1648 | M30: 2470362.465 | N30: 23 | O30: 2.54874646 | P30: 2.470362465 | Q30: -78383.99491 | T30: 20285.59437
A31: 24 | D31: 108390.7687 | E31: =D31/(1+'Dateneingabe und Ergebnisse'!$F$58/100)^A31 -> 53321.07581 | F31: 2602067.535 | G31: 0 | I31: 88105.17428 | J31: 0 | K31: 88105.17428 | L31: =K31/(1+'Dateneingabe und Ergebnisse'!$F$58/100)^A31 -> 43341.90758 | M31: 2513704.372 | N31: 24 | O31: 2.602067535 | P31: 2.513704372 | Q31: -88363.16315 | T31: 20285.59437
A32: 25 | D32: 108390.7687 | E32: =D32/(1+'Dateneingabe und Ergebnisse'!$F$58/100)^A32 -> 51768.03477 | F32: 2653835.57 | G32: 0 | I32: 88105.17428 | J32: 0 | K32: 88105.17428 | L32: =K32/(1+'Dateneingabe und Ergebnisse'!$F$58/100)^A32 -> 42079.52192 | M32: 2555783.894 | N32: 25 | O32: 2.65383557 | P32: 2.555783894 | Q32: -98051.67599 | T32: 20285.59437
A33: 26 | D33: 108390.7687 | E33: =D33/(1+'Dateneingabe und Ergebnisse'!$F$58/100)^A33 -> 50260.22793 | F33: 2704095.798 | G33: 0 | I33: 88105.17428 | J33: 0 | K33: 88105.17428 | L33: =K33/(1+'Dateneingabe und Ergebnisse'!$F$58/100)^A33 -> 40853.90478 | M33: 2596637.799 | N33: 26 | O33: 2.704095798 | P33: 2.596637799 | Q33: -107457.9991 | T33: 20285.59437
A34: 27 | D34: 108390.7687 | E34: =D34/(1+'Dateneingabe und Ergebnisse'!$F$58/100)^A34 -> 48796.33779 | F34: 2752892.136 | G34: 0 | I34: 88105.17428 | J34: 0 | K34: 88105.17428 | L34: =K34/(1+'Dateneingabe und Ergebnisse'!$F$58/100)^A34 -> 39663.98522 | M34: 2636301.784 | N34: 27 | O34: 2.752892136 | P34: 2.636301784 | Q34: -116590.3517 | T34: 20285.59437
A35: 28 | D35: 108390.7687 | E35: =D35/(1+'Dateneingabe und Ergebnisse'!$F$58/100)^A35 -> 47375.08524 | F35: 2800267.221 | G35: 0 | I35: 88105.17428 | J35: 0 | K35: 88105.17428 | L35: =K35/(1+'Dateneingabe und Ergebnisse'!$F$58/100)^A35 -> 38508.72351 | M35: 2674810.508 | N35: 28 | O35: 2.800267221 | P35: 2.674810508 | Q35: -125456.7134 | T35: 20285.59437
A36: 29 | D36: 108390.7687 | E36: =D36/(1+'Dateneingabe und Ergebnisse'!$F$58/100)^A36 -> 45995.22839 | F36: 2846262.449 | G36: 0 | I36: 88105.17428 | J36: 0 | K36: 88105.17428 | L36: =K36/(1+'Dateneingabe und Ergebnisse'!$F$58/100)^A36 -> 37387.11021 | M36: 2712197.618 | N36: 29 | O36: 2.846262449 | P36: 2.712197618 | Q36: -134064.8316 | T36: 20285.59437
A37: 30 | D37: 108390.7687 | E37: =D37/(1+'Dateneingabe und Ergebnisse'!$F$58/100)^A37 -> 44655.56154 | F37: 2890918.011 | G37: 0 | I37: 88105.17428 | J37: 0 | K37: 88105.17428 | L37: =K37/(1+'Dateneingabe und Ergebnisse'!$F$58/100)^A37 -> 36298.16525 | M37: 2748495.783 | N37: 30 | O37: 2.890918011 | P37: 2.748495783 | Q37: -142422.2279 | T37: 20285.59437

Sheet t_TS --> OVC (hidden)
H2: K1 | I2: 43.22680154 | K2: K2 | L2: 37.06262264
H3: n1 | I3: 0.1398145876 | K3: n2 | L3: 0.1634740788
B7: von Grafik | D7: von Excel | F7: von Excel verändert | H7: Potenzfunktion
A8: t_TS | B8: OVC | D8: OVC | F8: OVC | H8: OVC | K8: OVC
B9: mit VK | C9: ohne VK | D9: mit VK | E9: ohne VK | F9: mit VK | G9: ohne VK | H9: mit VK | K9: ohne VK
A10: d | B10: % | C10: % | H10: %
A11: 5 | B11: 53 | C11: 47 | D11: =8.8152*LN(A11)+39.505 -> 53.69251709 | E11: =9.4345*LN(A11)+32.468 -> 47.65224198 | F11: =8.8152*LN(A11)+39.505-1 -> 52.69251709 | G11: =9.4345*LN(A11)+32.468-1 -> 46.65224198 | H11: =$I$2*A11^($I$3)-1 -> 53.13514508 | I11: =B11-H11 -> -0.13514508 | J11: =I11^2 -> 0.01826419264 | K11: =$L$2*A11^($L$3)-1 -> 47.2169378 | L11: =K11-C11 -> 0.2169377968 | M11: =L11^2 -> 0.04706200767
A12: 10 | B12: 60 | C12: 54 | D12: =8.8152*LN(A12)+39.505 -> 59.80274811 | E12: =9.4345*LN(A12)+32.468 -> 54.19173906 | F12: 58.80274811 | G12: 53.19173906 | H12: 58.64412747 | I12: 1.355872531 | J12: =I12^2 -> 1.83839032 | K12: 53.00204751 | L12: -0.9979524872 | M12: =L12^2 -> 0.9959091667
A13: 15 | B13: 64 | C13: 59 | D13: 63.37700413 | E13: 58.01709962 | F13: 62.37700413 | G13: 57.01709962 | H13: 62.12302694 | I13: 1.876973058 | J13: 3.523027859 | K13: 56.70275953 | L13: -2.297240473 | M13: 5.277313789
A14: 20 | B14: 67 | C14: 62 | D14: 65.91297914 | E14: 60.73123613 | F14: 64.91297914 | G14: 59.73123613 | H14: 64.71372324 | I14: 2.286276756 | J14: 5.227061407 | K14: 59.48125967 | L14: -2.518740326 | M14: 6.34405283
A15: 25 | B15: 68 | C15: 63 | D15: 67.88003417 | E15: 62.83648397 | F15: 66.88003417 | G15: 61.83648397 | H15: 66.7962243 | I15: 1.203775697 | J15: 1.449075929 | K15: 61.72824007 | L15: -1.271759929 | M15: 1.617373316
A16: 30 | B16: 69 | C16: 64 | D16: 69.48723516 | E16: 64.5565967 | F16: 68.48723516 | G16: 63.5565967 | H16: 68.54664774 | I16: 0.453352261 | J16: 0.2055282726 | K16: 63.6259863 | L16: -0.3740136971 | M16: 0.1398862456
A17: 35 | B17: 70 | C17: 65 | D17: 70.84610423 | E17: 66.01093129 | F17: 69.84610423 | G17: 65.01093129 | H17: 70.06182208 | I17: -0.06182207567 | J17: 0.00382196904 | K17: 65.27523083 | L17: 0.2752308273 | M17: 0.07575200831
J18: =SUM(J11:J17) -> 12.26516995 | M18: =SUM(M11:M17) -> 14.49734936
A20: Anpassungsfunktion muss wohl noch abgeflachtt werden!! 71 % OVC bei 35 Tage Schlammalter sind einfach zu viel! Vielleicht einfach -1 und schon passt???

Sheet Fixe Parameter
A1: Parameter | B1: Einheit | C1: Wert
A2: Sauerstoffsättigungskonzentration CS | B2: mg/L | C2: 13
A3: Sauerstoffkonzentration im Belebungsbecken CX | B3: mg/L | C3: 1.5
A4: spezifischer oTS-Gehalt ausgefaulter Schlamm | B4: g oTS/(EW120·d) | C4: 20
A5: CSB/oTS | B5: – | C5: 1.45
A6: N-Anteil im Überschussschlamm iN,ÜS | B6: – | C6: 0.06
A7: N/oTSPS = | B7: – | C7: 0.06
A8: Energiegehalt Methan | B8: kWh/m³ CH4 | C8: 10
A9: spezifische Methanprotuktion | B9: Nm³ CH4/kg CSB | C9: 0.35
C50: 13
C51: 1.5
C52: 1.45
C53: 20
C54: 0.35
C55: 10
C56: 0.06
C57: =0.06 -> 0.06
